{"text_format":"1","workbook":"xlsx","n_sheets":9,"sheets":["MATRIZ DE INDICADORES","AAA-1","AAA-2","AAA-5","AAA-9","AAA-11","AAA-12","ACTUALIZACIONES","ITEM"],"not_rendered":{"charts":6,"images":4,"macros":1,"external_links":0,"defined_names":19,"comments":6,"pivot_tables":0},"unopened":[],"bounds":{"document_bytes":16777216,"sheet_cells":100000,"rows_first":2000,"rows_last":500,"rows_between":2000,"halvings":0,"cell_chars":16384,"cell_head_chars":4096},"cells_cut":0,"cells_raw":0,"read":"whole","date_system":"1900"}

{"sheet":"MATRIZ DE INDICADORES","index":0,"n_rows":71,"n_cols":21,"rows_kept":71,"cut":false,"hidden":false,"merged":[[28,11,32,11],[28,10,32,10],[28,9,32,9],[12,6,44,6],[37,11,44,11],[37,10,44,10],[28,8,32,8],[37,9,44,9],[37,8,44,8],[33,11,36,11],[33,10,36,10],[33,9,36,9],[33,8,36,8],[33,7,36,7],[1,18,1,20],[1,1,4,2],[1,3,1,17],[2,3,2,17],[3,3,4,17],[55,1,55,20],[56,1,56,20],[2,18,2,20],[3,18,3,20],[4,18,4,20],[9,1,10,20],[6,16,7,17],[12,18,19,18],[12,19,19,19],[12,20,19,20],[12,11,19,11],[12,10,19,10],[12,9,19,9],[12,8,19,8],[33,18,36,18],[33,19,36,19],[20,18,27,18],[20,19,27,19],[20,20,27,20],[20,7,27,7],[20,8,27,8],[20,9,27,9],[20,10,27,10],[20,11,27,11],[12,17,50,17],[45,18,50,18],[45,19,50,19],[45,20,50,20],[45,11,50,11],[45,10,50,10],[45,9,50,9],[45,8,50,8],[33,20,36,20],[28,18,32,18],[28,19,32,19],[28,20,32,20],[37,18,44,18],[37,19,44,19],[37,20,44,20],[45,7,50,7],[12,1,50,1],[12,2,50,2],[37,3,50,3],[37,4,50,4],[12,5,50,5],[45,6,50,6],[12,3,36,3],[28,7,32,7],[12,7,19,7],[37,7,44,7],[12,4,36,4]]}
[]
[null,null,null,"MACROPROCESO ESTRATÉGICO",null,null,null,null,null,null,null,null,null,null,null,null,null,null,"CÓDIGO: ESGr027"]
[null,null,null,"PROCESO GESTIÓN SISTEMAS INTEGRADOS - CALIDAD",null,null,null,null,null,null,null,null,null,null,null,null,null,null,"VERSIÓN: 8"]
[null,null,null,"MATRIZ DE MEDICIÓN Y SEGUIMIENTO A LOS PROCESOS DE GESTIÓN",null,null,null,null,null,null,null,null,null,null,null,null,null,null,"VIGENCIA: 2023-07-28"]
[null,null,null,null,null,null,null,null,null,null,null,null,null,null,null,null,null,null,"PÁGINA: 1 de 8"]
[]
[null,null,null,null,null,null,null,null,null,null,null,null,null,null,null,null,"FECHA DE ACTUALIZACIÓN:",null,"AÑO","MES","DÍA"]
[null,null,null,null,null,null,null,null,null,null,null,null,null,null,null,null,null,null,2023,8,3]
[]
[null,"ALINEACIÓN DE LOS INDICADORES CON LOS DOCUMENTOS ESTRATÉGICOS Y LOS OBJETIVOS DE CALIDAD"]
[]
[null,"PROCESO GESTIÓN","FRENTES DEL PLAN ESTRATÉGICO","LINEAMIENTOS DE LA POLÍTICA DE CALIDAD","OBJETIVOS DE CALIDAD","OBJETIVO GENERAL DEL PROCESO","OBJETIVOS ESPECÍFICOS","NOMBRE INDICADOR","FÓRMULA","TIPO DE INDICADOR","SEGUIMIENTO MEDICIÓN","META","ACTIVIDAD","RESPONSABLE DE LA ACTIVIDAD","¿QUÉ RECURSOS SE REQUIEREN?","FECHA EJECUCIÓN DE ACTIVIDADES","EVIDENCIA","¿CUÁNDO FINALIZARÁ?","RESULTADO ","NIVEL OBTENIDO","ACCESO"]
[null,"Apoyo Académico","Frente Estratégico I: Campo Multidimensional de Aprendizaje (CMA)","La satisfacción de las necesidades y expectativas de la comunidad universitaria a través de la  adopción del campo multidimensional de aprendizaje","Lograr la acreditación de programas y la acreditación institucional de acuerdo a la planificación de las metas  institucionales resultantes de los ejercicios de autoevaluación y acreditación","Asegurar la prestación de espacios académicos, elementos educativos y la ejecución de los recursos asignados a la Unidad de Apoyo Académico, con el fin de contribuir al desarrollo de los procesos de la academia.","Asegurar la disponibilidad y suficiencia de la totalidad de los recursos asignados a la Unidad de Apoyo Académico que permita llevar el seguimiento a la usabilidad, para el desarrollo de las actividades de la academia durante los dos periodos académicos del 2023.","Disponibilidad de Softwares Académicos","Número de licencias que mantienen en continuidad en el periodo académico * 100/Número total de licencias adquiridas","Acreditación","Semestral",1,"Planificar el cronograma para la apertura del aplicativo entorno a la adquisición de los Software académicos de acuerdo a la necesidad de la academia","Jefatura de Apoyo Académico","Recurso Humano\nOffice 365","2022-12-01","Cronograma",2023,{"$f":"'AAA-1'!E46","v":1},"BUENO","AAA-1"]
[null,null,null,null,null,null,null,null,null,null,null,null,"Aperturar en el aplicativo la relación de las fechas de recepción de solicitudes de Software académico","Jefatura de Apoyo Académico","Recurso Humano\nOffice 365","1 al 24 de mayo 2023","Solicitudes realizadas en el aplicativo"]
[null,null,null,null,null,null,null,null,null,null,null,null,"Validar las solicitudes realizadas en el aplicativo","Jefatura de Apoyo Académico","Recurso Humano\nOffice 365","2023-06-01","Solicitudes realizadas en el aplicativo"]
[null,null,null,null,null,null,null,null,null,null,null,null,"Cargar la estimación de gastos de funcionamiento para la vigencia 2024 ","Jefatura de Apoyo Académico","Recurso Humano\nOffice 365\nCargue de información en Integradoc","IIPA 2023 ","Información cargada en Integradoc"]
[null,null,null,null,null,null,null,null,null,null,null,null,"Priorizar las licencias a adquirir con el presupuesto asignado","Jefatura de Apoyo Académico","Recurso Humano\nOffice 365","IIPA 2023 ","Resolución de adición de recursos"]
[null,null,null,null,null,null,null,null,null,null,null,null,"Ejecutar el presupuesto asignado de las licencias para el funcionamiento","Jefatura de Apoyo Académico","Recurso Humano\nOffice 365","IIPA 2023\nVigencia 2024","Tablero de control"]
[null,null,null,null,null,null,null,null,null,null,null,null,"Medir los resultados de la  disponibilidad de Softwares Académicos ","Jefatura de Apoyo Académico","Recurso Humano\nOffice 365","Jun - 23\nDic - 23","Medición del indicador"]
[null,null,null,null,null,null,null,null,null,null,null,null,"Implementar acciones según los resultados","Jefatura de Apoyo Académico","Recurso Humano\nOffice 365","Según la necesidad","Ficha técnica de indicador - Acción formulada"]
[null,null,null,null,null,null,null,"Suficiencia de elementos educativos","Elementos educativos adquiridos para la academia*100/ Total de elementos educativos priorizados requeridos por la academia (solicitudes vigencia anterior)\n","Acreditación","Semestral",1,"Planificar el cronograma para la apertura del aplicativo para la adquisición de elementos educativos","Jefatura de Apoyo Académico","Recurso Humano\nOffice 365","2022-12-01","Cronograma",null,{"$f":"'AAA-9'!E49","v":0.96783216783216786},"BUENO","AAA-9"]
[null,null,null,null,null,null,null,null,null,null,null,null,"Aperturar en el aplicativo la relación de las fechas de recepción de solicitudes para la adquisición de elementos educativos","Jefatura de Apoyo Académico","Recurso Humano\nOffice 365","1 al 24 de mayo 2023","Solicitudes realizadas en el aplicativo"]
[null,null,null,null,null,null,null,null,null,null,null,null,"Validar las solicitudes realizadas en el aplicativo","Jefatura de Apoyo Académico","Recurso Humano\nOffice 365","2023-06-01","Solicitudes realizadas en el aplicativo"]
[null,null,null,null,null,null,null,null,null,null,null,null,"Cargar la estimación de gastos de funcionamiento para la vigencia 2024 ","Jefatura de Apoyo Académico","Recurso Humano\nOffice 365\nCargue de información en Integradoc","IIPA 2023 ","Información cargada en Integradoc"]
[null,null,null,null,null,null,null,null,null,null,null,null,"Priorizar los elementos educativos a adquirir con el presupuesto asignado","Jefatura de Apoyo Académico","Recurso Humano\nOffice 365","IIPA 2023 ","Resolución de adición de recursos"]
[null,null,null,null,null,null,null,null,null,null,null,null,"Ejecutar el presupuesto asignado para los mantenimientos","Jefatura de Apoyo Académico","Recurso Humano\nOffice 365","IIPA 2023\nVigencia 2024","Tablero de control"]
[null,null,null,null,null,null,null,null,null,null,null,null,"Medir los resultados de la suficiencia de elementos educativos","Jefatura de Apoyo Académico","Recurso Humano\nOffice 365","Jun - 23\nDic - 23","Medición del indicador"]
[null,null,null,null,null,null,null,null,null,null,null,null,"Implementar acciones según los resultados","Jefatura de Apoyo Académico","Recurso Humano\nOffice 365","Según la necesidad","Ficha técnica de indicador - Acción formulada"]
[null,null,null,null,null,null,null,"Recursos de apoyo - Usabilidad de laboratorios","Número de visitas a los laboratorios * 100/Total de estudiantes activos para el uso del laboratorio ","Acreditación","Semestral",2,"Realizar la validación de la asistencia de la usabilidad de los laboratorios en cada periodo académico","Jefatura de Apoyo Académico","Recurso Humano\nOffice 365\nPlataforma Gestasoft","Inicio de:\nIPA 2023\nIIPA 2023","Link para realizar el registro de la usabilidad",null,{"$f":"'AAA-11'!E44","v":13.594207668257363},"ACEPTABLE","AAA-11"]
[null,null,null,null,null,null,null,null,null,null,null,null,"Verificar el cargue de la información en plataforma","Jefatura de Apoyo Académico","Recurso Humano\nOffice 365\nPlataforma Gestasoft","Vigencia 2023","Aplicativo \"Asistencia UAA\""]
[null,null,null,null,null,null,null,null,null,null,null,null,"Reportar y consolidar la usabilidad de los laboratorios generados en el aplicativo","Jefatura de Apoyo Académico","Recurso Humano\nOffice 365\nPlataforma Gestasoft","Finalizar cada periodo académico","Tablero de control"]
[null,null,null,null,null,null,null,null,null,null,null,null,"Medir los resultados de los recursos de apoyo - Usabilidad de laboratorios","Jefatura de Apoyo Académico","Recurso Humano\nOffice 365","Jun - 23\nDic - 23","Medición del indicador"]
[null,null,null,null,null,null,null,null,null,null,null,null,"Implementar acciones según los resultados","Jefatura de Apoyo Académico","Recurso Humano\nOffice 365","Según la necesidad","Ficha técnica de indicador - Acción formulada"]
[null,null,null,null,null,null,null,"Usabilidad de recursos bibliográficos, (bases de datos, libros impresos y digitales)","Número de consultas en relación con los recursos bibliográficos de la Ucundinamarca","Acreditación","Semestral",70000,"Actualización de las bases de datos de los recursos bibliográficos","Unidad de Apoyo Académico - CGCA","Recurso Humano\nOffice 365","De acuerdo a la necesidad","Actualización de las bases de datos",null,{"$f":"'AAA-12'!E48","v":161512},"EXCELENTE","AAA-12"]
[null,null,null,null,null,null,null,null,null,null,null,null,"Reportar y consolidar la usabilidad de los recursos bibliográficos","Unidad de Apoyo Académico - CGCA","Recurso Humano\nOffice 365","Finalizar cada periodo académico","Reporte consolidado de las bases de datos"]
[null,null,null,null,null,null,null,null,null,null,null,null,"Medir los resultados de la usabilidad de recursos bibliográficos, (bases de datos, libros impresos y digitales) ","Jefatura de Apoyo Académico","Recurso Humano\nOffice 365","Jun - 23\nDic - 23","Medición del indicador"]
[null,null,null,null,null,null,null,null,null,null,null,null,"Implementar acciones según los resultados","Jefatura de Apoyo Académico","Recurso Humano\nOffice 365","Según la necesidad","Ficha técnica de indicador - Acción formulada"]
[null,null,null,"Consolidación de una organización universitaria inteligente con alma y corazón","Mejorar continuamente el desempeño de los procesos a través de la implementación de buenas prácticas institucionales y de la aplicación de los mecanismos dispuestos por la Universidad de Cundinamarca, para la constitución de una organización universitaria inteligente con alma y corazón.",null,null,"Mantenimiento a Elementos Educativos"," Total de Elementos Educativos Con Mantenimiento Realizado *100/ Total de Elementos Educativos que Requieren Mantenimiento de acuerdo a Priorización","Eficacia","Semestral",1,"Planificar el cronograma para la apertura del aplicativo entorno a la adquisición para el mantenimiento de los equipos","Jefatura de Apoyo Académico","Recurso Humano\nOffice 365","2022-12-01","Cronograma",null,{"$f":"'AAA-5'!E49","v":0.75346534653465347},"ACEPTABLE","AAA-5"]
[null,null,null,null,null,null,null,null,null,null,null,null,"Aperturar en el aplicativo de la relación de las fechas de recepción de solicitudes de los mantenimientos requeridos","Jefatura de Apoyo Académico","Recurso Humano\nOffice 365","1 al 24 de mayo 2023","Solicitudes realizadas en el aplicativo"]
[null,null,null,null,null,null,null,null,null,null,null,null,"Validar las solicitudes realizadas en el aplicativo","Jefatura de Apoyo Académico","Recurso Humano\nOffice 365","2023-06-01","Solicitudes realizadas en el aplicativo"]
[null,null,null,null,null,null,null,null,null,null,null,null,"Cargar la estimación de gastos de funcionamiento para la vigencia 2024 ","Jefatura de Apoyo Académico","Recurso Humano\nOffice 365\nCargue de información en Integradoc","IIPA 2023 ","Información cargada en Integradoc"]
[null,null,null,null,null,null,null,null,null,null,null,null,"Priorizar los mantenimientos a realizar con el presupuesto asignado","Jefatura de Apoyo Académico","Recurso Humano\nOffice 365","IIPA 2023 ","Resolución de adición de recursos"]
[null,null,null,null,null,null,null,null,null,null,null,null,"Ejecutar el presupuesto asignado para los mantenimientos","Jefatura de Apoyo Académico","Recurso Humano\nOffice 365","IIPA 2023\nVigencia 2024","Tablero de control"]
[null,null,null,null,null,null,null,null,null,null,null,null,"Medir los resultados de los mantenimiento realizados a los Elementos Educativos","Jefatura de Apoyo Académico","Recurso Humano\nOffice 365","Jun - 23\nDic - 23","Medición del indicador"]
[null,null,null,null,null,null,null,null,null,null,null,null,"Implementar acciones según los resultados","Jefatura de Apoyo Académico","Recurso Humano\nOffice 365","Según la necesidad","Ficha técnica de indicador - Acción formulada"]
[null,null,null,null,null,null,"Realizar la calibración del total de los equipos y elementos reportados por la Dirección de Ciencia y Tecnología y los cuales serán utilizados para los proyectos de investigación a realizar en el 2023.","Calibración de equipo y elementos educativos de investigación","Total de equipos con calibración realizada *100/ 100% del total de equipos reportados por la Dirección de Investigación y con presupuesto asignado","Eficacia","Semestral",1,"Planificar el cronograma de los equipos y/o elementos requeridos para calibración","Jefatura de Apoyo Académico","Recurso Humano\nOffice 365","2022-12-01","Cronograma",null,{"$f":"'AAA-2'!E44","v":1},"BUENO","AAA-2"]
[null,null,null,null,null,null,null,null,null,null,null,null,"Estimar de acuerdo al reporte de Ciencia y Tecnología,  los equipos y/o elementos que requieren calibración","Jefatura de Apoyo Académico","Recurso Humano\nOffice 365","IIPA2023","Tablero de control"]
[null,null,null,null,null,null,null,null,null,null,null,null,"Cargar la estimación de gastos de funcionamiento para la vigencia 2024 ","Jefatura de Apoyo Académico","Recurso Humano\nOffice 365\nCargue de información en Integradoc","IIPA 2023 ","Información cargada en Integradoc"]
[null,null,null,null,null,null,null,null,null,null,null,null,"Ejecutar el presupuesto asignado para los mantenimientos","Jefatura de Apoyo Académico","Recurso Humano\nOffice 365","IIPA 2023\nVigencia 2024","Tablero de control"]
[null,null,null,null,null,null,null,null,null,null,null,null,"Medir los resultados de la calibración de equipo y elementos educativos de investigación","Jefatura de Apoyo Académico","Recurso Humano\nOffice 365","Jun - 23\nDic - 23","Medición del indicador"]
[null,null,null,null,null,null,null,null,null,null,null,null,"Implementar acciones según los resultados","Jefatura de Apoyo Académico","Recurso Humano\nOffice 365","Según la necesidad","Ficha técnica de indicador - Acción formulada"]
[]
[]
[]
[]
[null,"Diagonal 18 No. 20-29 Fusagasugá – Cundinamarca\nTeléfono (601)  8281483 Línea Gratuita 018000180414\nwww.ucundinamarca.edu.co   E-mail:  info@ucundinamarca.edu.co\nNIT: 890.680.062-2                                                                             "]
[null,"Documento controlado por el Sistema de Gestión de la Calidad\nAsegúrese que corresponde a la última versión consultando el Portal Institucional"]
[]
[]
[]
[]
[]
[]
[]
[]
[null,null,"LINEAMIENTOS DE LA POLÍTICA DE CALIDAD","OBJETIVOS DE CALIDAD","ALINEACIÓN DE LOS INDICADORES CON LOS DOCUMENTOS ESTRATÉGICOS Y LOS OBJETIVOS DE CALIDAD"]
[null,null,"LINEAMIENTOS DE LA POLÍTICA DE SEGURIDAD Y SALUD EN EL TRABAJO","OBJETIVOS DE SEGURIDAD Y SALUD EN EL TRABAJO","ALINEACIÓN DE LOS INDICADORES CON LOS DOCUMENTOS ESTRATÉGICOS Y LOS OBJETIVOS DE SEGURIDAD Y SALUD EN EL TRABAJO"]
[null,null,"LINEAMIENTOS DE LA POLÍTICA DE AMBIENTAL","OBJETIVOS DE AMBIENTAL","ALINEACIÓN DE LOS INDICADORES CON LOS DOCUMENTOS ESTRATÉGICOS Y LOS OBJETIVOS DE AMBIENTAL"]
[null,null,"LINEAMIENTOS DE LA POLÍTICA DE SEGURIDAD DE LA INFORMACIÓN","OBJETIVOS DE SEGURIDAD DE LA INFORMACIÓN","ALINEACIÓN DE LOS INDICADORES CON LOS DOCUMENTOS ESTRATÉGICOS Y LOS OBJETIVOS DE SEGURIDAD DE LA INFORMACIÓN"]
[null,null,"LINEAMIENTOS DE LA POLÍTICA DE SEGURIDAD DE ANTISOBORNO","OBJETIVOS DE SEGURIDAD DE ANTISOBORNO","ALINEACIÓN DE LOS INDICADORES CON LOS DOCUMENTOS ESTRATÉGICOS Y LOS OBJETIVOS DE SEGURIDAD DE ANTISOBORNO"]
[null,null,"LINEAMIENTOS DE LA POLÍTICA DE LA CONCILIACIÓN DE LA VIDA PERSONAL, FAMILIAR Y LABORAL","OBJETIVOS DE LA CONCILIACIÓN DE LA VIDA PERSONAL, FAMILIAR Y LABORAL","ALINEACIÓN DE LOS INDICADORES CON LOS DOCUMENTOS ESTRATÉGICOS Y LOS OBJETIVOS DE LA CONCILIACIÓN DE LA VIDA PERSONAL, FAMILIAR Y LABORAL"]

{"sheet":"AAA-1","index":1,"n_rows":104,"n_cols":15,"rows_kept":104,"cut":false,"hidden":false,"merged":[[1,1,3,2],[4,2,7,3],[4,4,4,11],[4,12,4,14],[5,4,5,11],[5,12,5,14],[6,4,7,11],[6,12,6,14],[7,12,7,14],[12,2,12,3],[12,4,12,14],[13,2,13,3],[13,4,13,14],[14,2,14,14],[15,2,15,14],[8,2,8,14],[9,2,10,14],[11,2,11,3],[11,4,11,7],[11,8,11,9],[11,10,11,14],[16,15,17,15],[17,2,18,3],[17,4,17,5],[17,6,17,10],[17,11,18,12],[17,13,18,14],[18,4,18,5],[18,6,18,10],[16,2,16,3],[16,4,16,6],[16,7,16,8],[16,9,16,10],[16,11,16,12],[16,13,16,14],[19,2,21,3],[19,4,21,6],[19,7,21,8],[19,9,21,10],[19,11,19,14],[22,2,22,3],[22,4,22,6],[22,7,23,8],[22,9,23,10],[22,11,23,12],[26,15,27,15],[27,9,29,14],[30,9,30,14],[31,9,36,14],[37,9,37,14],[38,9,38,14],[22,13,23,14],[23,2,23,3],[23,4,23,6],[25,2,25,14],[26,2,39,8],[26,9,26,14],[39,9,39,14],[51,2,51,5],[51,6,51,9],[51,10,51,14],[52,2,52,5],[52,6,52,9],[52,10,52,14],[41,2,41,14],[48,2,48,14],[49,2,49,5],[49,6,49,9],[49,10,49,14],[50,2,50,5],[50,6,50,9],[50,10,50,14],[55,2,55,5],[55,6,55,9],[55,10,55,14],[56,2,56,5],[56,6,56,9],[56,10,56,14],[53,2,53,5],[53,6,53,9],[53,10,53,14],[54,2,54,5],[54,6,54,9],[54,10,54,14],[59,2,59,5],[59,6,59,9],[59,10,59,14],[60,2,60,5],[60,6,60,9],[60,10,60,14],[57,2,57,5],[57,6,57,9],[57,10,57,14],[58,2,58,5],[58,6,58,9],[58,10,58,14],[63,2,63,5],[63,6,63,9],[63,10,63,14],[64,2,64,5],[64,6,64,9],[64,10,64,14],[61,2,61,5],[61,6,61,9],[61,10,61,14],[62,2,62,5],[62,6,62,9],[62,10,62,14],[67,2,67,5],[67,6,67,9],[67,10,67,14],[65,2,65,5],[65,6,65,9],[65,10,65,14],[66,2,66,5],[66,6,66,9],[66,10,66,14]]}
[]
[null,"      REGRESAR"]
[]
[]
[null,null,null,null,"MACROPROCESO ESTRATÉGICO",null,null,null,null,null,null,null,"CÓDIGO: ESGr027"]
[null,null,null,null,"PROCESO GESTIÓN SISTEMAS INTEGRADOS",null,null,null,null,null,null,null,"VERSIÓN: 8"]
[null,null,null,null,"MATRIZ DE MEDICIÓN Y SEGUIMIENTO A LOS PROCESOS DE GESTIÓN",null,null,null,null,null,null,null,"VIGENCIA: 2023-07-28"]
[null,null,null,null,null,null,null,null,null,null,null,null,"PÁGINA: 2 de 8"]
[]
[null,null,"FICHA DE INDICADOR"]
[]
[null,null,"MACROPROCESO",null,"Apoyo",null,null,null,"NOMBRE DEL INDICADOR",null,"Disponibilidad de Softwares Académicos"]
[null,null,"PROCESO GESTIÓN",null,"Apoyo Académico"]
[null,null,"RESPONSABLE DE MEDICIÓN",null,"Jefe de la Unidad de Apoyo Académico"]
[]
[null,null,"1. COMPORTAMIENTO DE INDICADOR"]
[null,null,"CLASIFICACIÓN DE LA MEDICIÓN",null,1,null,null,"TIPO DE INDICADOR",null,"Acreditación",null,"META ANUAL",null,1]
[null,null,"FORMULA",null,"NUMERADOR",null,"Número de licencias que mantienen en continuidad en el periodo académico * 100",null,null,null,null,"UNIDAD DE MEDIDA",null,"Porcentual"]
[null,null,null,null,"DENOMINADOR",null,"Número total de licencias adquiridas"]
[null,null,"TENDENCIA",null,"Positiva",null,null,"NIVEL DE SEGREGACIÓN *",null,"Por Programa Académico",null,"ESCALA"]
[null,null,null,null,null,null,null,null,null,null,null,"Deficiente","Aceptable","Bueno","Excelente"]
[null,null,null,null,null,null,null,null,null,null,null,"0 - 60%","61% - 80%","80,1% - 100%","N/A"]
[null,null,"ORIGEN DE DATOS NUMERADOR",null,"Inventario AAAr111",null,null,"FRECUENCIA DE LA MEDICIÓN",null,"SEMESTRAL",null,"FRECUENCIA DE RESULTADO",null,"SEMESTRAL"]
[null,null,"ORIGEN DE DATOS DENOMINADOR",null,"Aplicativo Apoyo Académico"]
[]
[null,null,"RESULTADOS"]
[null,null,null,null,null,null,null,null,null,"ANÁLISIS DE DATOS"]
[null,null,null,null,null,null,null,null,null,"Se han mantenido vigentes 40 licencias para el IIPA2023;las cuales fueron renovadas y adquiridas conforme a las solicitudes emitidas por la academia durante el transcurso del año 2022. Durante el segundo periodo del año 2023, se procedió con la adquisición y activación de los programas FLOWCODE, ANTENNA DESIGN y WMS INTRALOG. Cabe resaltar que actualmente existen 14 licencias activas con suscripciones de duración vitalicia y perpetua. Esto implica que no requieren renovación periódica, ya que su validez se extiende de manera indefinida.\nEn consideración a lo anteriormente mencionado, se llevó a cabo la renovación de las 23 licencias restantes, las cuales, durante el año 2023, estuvieron en funcionamiento de manera continua a lo largo de todo el año."]
[]
[]
[null,null,null,null,null,null,null,null,null,"ACCIÓN FORMULADA"]
[null,null,null,null,null,null,null,null,null,"El gestor encargado del licenciamiento tiene la responsabilidad de verificar la información proveniente de las solicitudes presentadas por las distintas facultades de la Universidad de Cundinamarca y asegurarse que las licencias estén en vigencia para su uso académico. Su función principal consiste en validar la pertinencia de las licencias solicitadas, asegurando que estas sean realmente necesarias para las actividades de formación y aprendizaje de los diversos programas académicos. De esta manera, se busca optimizar la asignación de recursos destinados al licenciamiento académico."]
[]
[]
[]
[]
[]
[null,null,null,null,null,null,null,null,null,"RESPONSABLE "]
[null,null,null,null,null,null,null,null,null,{"$f":"E14","v":"Jefe de la Unidad de Apoyo Académico"}]
[]
[]
[null,null,"PERIODO DE EVALUACIÓN"]
[null,null,"MES",{"$f":"IF(J23=\"MENSUAL\",\"ENERO\",IF(J23=\"TRIMESTRAL\",\"MARZO\",IF(J23=\"SEMESTRAL\",\"JUNIO\",IF(J23=\"ANUAL\",YEAR(TODAY()),\"\"))))","v":"JUNIO"},{"$f":"IF(J23=\"MENSUAL\",\"FEBRERO\",IF(J23=\"TRIMESTRAL\",\"JUNIO\",IF(J23=\"SEMESTRAL\",\"DICIEMBRE\",\"\")))","v":"DICIEMBRE"},{"$f":"IF(J23=\"MENSUAL\",\"MARZO\",IF(J23=\"TRIMESTRAL\",\"SEPTIEMBRE\",\"\"))","v":""},{"$f":"IF(J23=\"MENSUAL\",\"ABRIL\",IF(J23=\"TRIMESTRAL\",\"DICIEMBRE\",\"\"))","v":""},{"$f":"IF(J23=\"MENSUAL\",\"MAYO\",\"\")","v":""},{"$f":"IF(J23=\"MENSUAL\",\"JUNIO\",\"\")","v":""},{"$f":"IF(J23=\"MENSUAL\",\"JULIO\",\"\")","v":""},{"$f":"IF(J23=\"MENSUAL\",\"AGOSTO\",\"\")","v":""},{"$f":"IF(J23=\"MENSUAL\",\"SEPTIEMBRE\",\"\")","v":""},{"$f":"IF(J23=\"MENSUAL\",\"OCTUBRE\",\"\")","v":""},{"$f":"IF(J23=\"MENSUAL\",\"NOVIEMBRE\",\"\")","v":""},{"$f":"IF(J23=\"MENSUAL\",\"DICIEMBRE\",\"\")","v":""}]
[null,null,{"$f":"G18","v":"Número de licencias que mantienen en continuidad en el periodo académico * 100"},40,40]
[null,null,{"$f":"G19","v":"Número total de licencias adquiridas"},40,40]
[null,null,"VALOR ",{"$f":"IFERROR(IF($E$17=1,D44/D45,IF($E$17=2,D44,\"\")),\"\")","v":1},1,"","","","","","","","","",""]
[null,null,"META PONDERADA",{"$f":"IF(AND(N23=\"ANUAL\",J23=\"MENSUAL\"),N17/12,IF(AND(N23=\"ANUAL\",J23=\"TRIMESTRAL\"),N17/4,IF(AND(N23=\"ANUAL\",J23=\"SEMESTRAL\"),N17/2,IF(AND(N23=\"ANUAL\",J23=\"ANUAL\"),N17,IF(AND(N23=\"SEMESTRAL\",J23=\"MENSUAL\"),N17/6,IF(AND(N23=\"SEMESTRAL\",J23=\"TRIMESTRAL\"),N17/2,IF(AND(N23=\"SEMESTRAL\",J23=\"SEMESTRAL\"),N17,IF(AND(N23=\"SEMESTRAL\",J23=\"ANUAL\"),\"REVISAR FRECUENCIAS\",IF(AND(N23=\"TRIMESTRAL\",J23=\"MENSUAL\"),N17/3,IF(AND(N23=\"TRIMESTRAL\",J23=\"TRIMESTRAL\"),N17,IF(AND(N23=\"TRIMESTRAL\",J23=\"SEMESTRAL\"),\"REVISAR FRECUENCIAS\",IF(AND(N23=\"TRIMESTRAL\",J23=\"ANUAL\"),\"REVISAR FRECUENCIAS\",IF(AND(N23=\"MENSUAL\",J23=\"MENSUAL\"),N17,IF(AND(N23=\"MENSUAL\",J23=\"TRIMESTRAL\"),\"REVISAR FRECUENCIAS\",IF(AND(N23=\"MENSUAL\",J23=\"SEMESTRAL\"),\"REVISAR FRECUENCIAS\",IF(AND(N23=\"MENSUAL\",J23=\"ANUAL\"),\"REVISAR FRECUENCIAS\",\"\"))))))))))))))))","v":1},{"$f":"IF(AND(N23=\"ANUAL\",J23=\"MENSUAL\"),N17/12+D47,IF(AND(N23=\"ANUAL\",J23=\"TRIMESTRAL\"),N17/4+D47,IF(AND(N23=\"ANUAL\",J23=\"SEMESTRAL\"),N17/2+D47,IF(AND(N23=\"SEMESTRAL\",J23=\"MENSUAL\"),N17/6+D47,IF(AND(N23=\"SEMESTRAL\",J23=\"TRIMESTRAL\"),N17/2+D47,IF(AND(N23=\"SEMESTRAL\",J23=\"SEMESTRAL\"),N17,IF(AND(N23=\"TRIMESTRAL\",J23=\"MENSUAL\"),N17/3+D47,IF(AND(N23=\"TRIMESTRAL\",J23=\"TRIMESTRAL\"),N17,IF(AND(N23=\"MENSUAL\",J23=\"MENSUAL\"),N17,\"\")))))))))","v":1},{"$f":"IF(AND(N23=\"ANUAL\",J23=\"MENSUAL\"),N17/12+E47,IF(AND(N23=\"ANUAL\",J23=\"TRIMESTRAL\"),N17/4+E47,IF(AND(N23=\"SEMESTRAL\",J23=\"MENSUAL\"),N17/6+E47,IF(AND(N23=\"SEMESTRAL\",J23=\"TRIMESTRAL\"),N17/2,IF(AND(N23=\"TRIMESTRAL\",J23=\"MENSUAL\"),N17/3+E47,IF(AND(N23=\"TRIMESTRAL\",J23=\"TRIMESTRAL\"),N17,IF(AND(N23=\"MENSUAL\",J23=\"MENSUAL\"),N17,\"\")))))))","v":""},{"$f":"IF(AND(N23=\"ANUAL\",J23=\"MENSUAL\"),N17/12+F47,IF(AND(N23=\"ANUAL\",J23=\"TRIMESTRAL\"),N17/4+F47,IF(AND(N23=\"SEMESTRAL\",J23=\"MENSUAL\"),N17/6+F47,IF(AND(N23=\"SEMESTRAL\",J23=\"TRIMESTRAL\"),N17/2+F47,IF(AND(N23=\"TRIMESTRAL\",J23=\"MENSUAL\"),N17/3,IF(AND(N23=\"TRIMESTRAL\",J23=\"TRIMESTRAL\"),N17,IF(AND(N23=\"MENSUAL\",J23=\"MENSUAL\"),N17,\"\")))))))","v":""},{"$f":"IF(AND($N$23=\"ANUAL\",$J$23=\"MENSUAL\"),$N$17/12+G47,IF(AND(N23=\"SEMESTRAL\",J23=\"MENSUAL\"),N17/6+G47,IF(AND(N23=\"TRIMESTRAL\",J23=\"MENSUAL\"),N17/3+G47,IF(AND(N23=\"MENSUAL\",J23=\"MENSUAL\"),N17,\"\"))))","v":""},{"$f":"IF(AND($N$23=\"ANUAL\",$J$23=\"MENSUAL\"),$N$17/12+H47,IF(AND(N23=\"SEMESTRAL\",J23=\"MENSUAL\"),N17/6+H47,IF(AND(N23=\"TRIMESTRAL\",J23=\"MENSUAL\"),N17/3+H47,IF(AND(N23=\"MENSUAL\",J23=\"MENSUAL\"),N17,\"\"))))","v":""},{"$f":"IF(AND($N$23=\"ANUAL\",$J$23=\"MENSUAL\"),$N$17/12+I47,IF(AND(N23=\"SEMESTRAL\",J23=\"MENSUAL\"),N17/6,IF(AND(N23=\"TRIMESTRAL\",J23=\"MENSUAL\"),N17/3,IF(AND(N23=\"MENSUAL\",J23=\"MENSUAL\"),N17,\"\"))))","v":""},{"$f":"IF(AND($N$23=\"ANUAL\",$J$23=\"MENSUAL\"),$N$17/12+J47,IF(AND(N23=\"SEMESTRAL\",J23=\"MENSUAL\"),N17/6+J47,IF(AND(N23=\"TRIMESTRAL\",J23=\"MENSUAL\"),N17/3+J47,IF(AND(N23=\"MENSUAL\",J23=\"MENSUAL\"),N17,\"\"))))","v":""},{"$f":"IF(AND($N$23=\"ANUAL\",$J$23=\"MENSUAL\"),$N$17/12+K47,IF(AND(N23=\"SEMESTRAL\",J23=\"MENSUAL\"),N17/6+K47,IF(AND(N23=\"TRIMESTRAL\",J23=\"MENSUAL\"),N17/3+K47,IF(AND(N23=\"MENSUAL\",J23=\"MENSUAL\"),N17,\"\"))))","v":""},{"$f":"IF(AND($N$23=\"ANUAL\",$J$23=\"MENSUAL\"),$N$17/12+L47,IF(AND(N23=\"SEMESTRAL\",J23=\"MENSUAL\"),N17/6+L47,IF(AND(N23=\"TRIMESTRAL\",J23=\"MENSUAL\"),N17/3,IF(AND(N23=\"MENSUAL\",J23=\"MENSUAL\"),N17,\"\"))))","v":""},{"$f":"IF(AND($N$23=\"ANUAL\",$J$23=\"MENSUAL\"),$N$17/12+M47,IF(AND(N23=\"SEMESTRAL\",J23=\"MENSUAL\"),N17/6+M47,IF(AND(N23=\"TRIMESTRAL\",J23=\"MENSUAL\"),N17/3+M47,IF(AND(N23=\"MENSUAL\",J23=\"MENSUAL\"),N17,\"\"))))","v":""},{"$f":"IF(AND($N$23=\"ANUAL\",$J$23=\"MENSUAL\"),$N$17/12+N47,IF(AND(N23=\"SEMESTRAL\",J23=\"MENSUAL\"),N17/6+N47,IF(AND(N23=\"TRIMESTRAL\",J23=\"MENSUAL\"),N17/3+N47,IF(AND(N23=\"MENSUAL\",J23=\"MENSUAL\"),N17,\"\"))))","v":""}]
[]
[null,null,"NIVEL DE SEGREGACIÓN *"]
[null,null,"UNIDAD SEGREGADA (Ej. Facultad, Programa Académico, Área)",null,null,null,"RESULTADO",null,null,null,"ANALISIS DE DATOS SEGREGADO"]
[null,null,"Tecnología En Cartografía",null,null,null,1,null,null,null,"cuenta con 3 licencias vitalicias activas para el programa académico "]
[null,null,"Contaduría Pública",null,null,null,1,null,null,null,"El programa cuenta con 4 softwares académicos, uno de ellos es de licencia vitalicia para el programa"]
[null,null,"Zootecnia",null,null,null,1,null,null,null,"El programa cuenta con 4 licencias activas; las cuales tienen una continuidad durante todo el IIPA2023"]
[null,null,"Ingeniería Electrónica",null,null,null,1,null,null,null,"El programa cuenta con 3 programas académicos, de los cuales dos de ellos son se suscripción vitalicia"]
[null,null,"Ingeniería de Sistemas",null,null,null,1,null,null,null,"cuenta con 2 licencias vitalicias activas para el programa académico "]
[null,null,"Edu. Básica con énfasis en humanidades, lengua castellana e ingles",null,null,null,1,null,null,null,"cuenta con 2 licencias activas para el programa académico "]
[null,null,"Ciencias del Deporte y la Educación Física",null,null,null,0,null,null,null,"Cuenta con 1 licencia activa durante todo el periodo académico "]
[null,null,"Empresas-Contaduría-Ciencias del Deporte y la Educación Física",null,null,null,1,null,null,null,"Los programas  cuentan con 1 licencia activa y vigente durante IIPA 2023"]
[null,null,"Empresas-Contaduría",null,null,null,1,null,null,null,"El programa cuenta con 3 licencias  vigentes durante el 2023, una de ellas es de suscripción perpetua "]
[null,null,"Administración de Empresas",null,null,null,0,null,null,null,"Después de validar las licencias que eran realmente utilizadas por los programas, dichas licencias no fueron renovadas para el 2022-2"]
[null,null,"Psicología",null,null,null,1,null,null,null,"El programa cuenta con 2 licencias vigentes durante el 2023. "]
[null,null,"Tecnología En Cartografía-Ingeniería Ambiental",null,null,null,1,null,null,null,"El programa cuenta con 1 licencias vigentes durante el 2023, "]
[null,null,"Música",null,null,null,1,null,null,null,"El programa cuenta con 3  licencias de suscripción vitalicia "]
[null,null,"Ingeniería Sistemas - Ingeniería Electrónica",null,null,null,1,null,null,null,"El programa cuenta con 2 licencias renovadas y vigentes en el 2023"]
[null,null,"Ingeniería Electrónica - Ingeniería Industrial",null,null,null,1,null,null,null,"El programa cuenta con 1 licencia activa durante el 2023"]
[null,null,"Ingeniería Industrial",null,null,null,1,null,null,null,"El programa cuenta con 5 licencias  vigentes durante el 2023"]
[null,null,"Licenciatura en Matemáticas",null,null,null,1,null,null,null,"El programa cuenta con 1 licencia activa en el 2023"]
[null,null,"Tecnología En Gestión Turística y Hotelera",null,null,null,1,null,null,null,"El programa cuenta con 2 licencias renovadas y vigentes en el 2023"]
[]
[]
[]
[]
[]
[]
[]
[]
[]
[null,null,null,null,null,null,"Estratégico",null,null,"Eficacia"]
[null,null,null,null,null,null,"Misional",null,null,"Eficiencia"]
[null,null,null,null,null,null,"Apoyo",null,null,"Acreditación"]
[null,null,null,null,null,null,"Seguimiento, Medición, Análisis y Evaluación",null,null,"Positiva"]
[null,null,null,null,null,null,"Direccionamiento Estratégico",null,null,"Negativa"]
[null,null,null,null,null,null,"Planeación Institucional",null,null,"Por Unidad Regional"]
[null,null,null,null,null,null,"Proyectos Especiales y Relaciones Interinstitucionales",null,null,"Por Facultad"]
[null,null,null,null,null,null,"Sistemas Integrados",null,null,"Por Programa Académico"]
[null,null,null,null,null,null,"Autoevaluación y Acreditación",null,null,"Por área"]
[null,null,null,null,null,null,"Comunicaciones",null,null,"Por Laboratorio"]
[null,null,null,null,null,null,"Formación y Aprendizaje",null,null,"Otros"]
[null,null,null,null,null,null,"Ciencia, Tecnología e Innovación",null,null,"No Aplica"]
[null,null,null,null,null,null,"Interacción Social Universitaria"]
[null,null,null,null,null,null,"Bienestar Universitario"]
[null,null,null,null,null,null,"Admisiones y Registro"]
[null,null,null,null,null,null,"Graduados"]
[null,null,null,null,null,null,"Dialogando con el Mundo"]
[null,null,null,null,null,null,"Talento Humano"]
[null,null,null,null,null,null,"Jurídica"]
[null,null,null,null,null,null,"Financiera"]
[null,null,null,null,null,null,"Sistemas y Tecnología"]
[null,null,null,null,null,null,"Bienes y Servicios"]
[null,null,null,null,null,null,"Documental"]
[null,null,null,null,null,null,"Apoyo Académico"]
[null,null,null,null,null,null,"Control Interno"]
[null,null,null,null,null,null,"Control Disciplinario"]
[null,null,null,null,null,null,"Servicio de Atención al Ciudadano"]

{"sheet":"AAA-2","index":2,"n_rows":93,"n_cols":15,"rows_kept":93,"cut":false,"hidden":false,"merged":[[1,1,3,2],[4,2,7,3],[4,4,4,11],[4,12,4,14],[5,4,5,11],[5,12,5,14],[6,4,7,11],[6,12,6,14],[7,12,7,14],[15,2,15,14],[8,2,8,14],[9,2,10,14],[11,2,11,3],[11,4,11,7],[11,8,11,9],[11,10,11,14],[12,2,12,3],[12,4,12,14],[13,2,13,3],[13,4,13,14],[14,2,14,14],[16,15,17,15],[17,2,18,3],[17,4,17,5],[17,6,17,10],[17,11,18,12],[17,13,18,14],[18,4,18,5],[18,6,18,10],[16,2,16,3],[16,4,16,6],[16,7,16,8],[16,9,16,10],[16,11,16,12],[16,13,16,14],[19,2,21,3],[19,4,21,6],[19,7,21,8],[19,9,21,10],[19,11,19,14],[22,13,23,14],[23,2,23,3],[23,4,23,6],[25,2,25,14],[26,2,37,8],[26,9,26,14],[37,9,37,14],[22,2,22,3],[22,4,22,6],[22,7,23,8],[22,9,23,10],[22,11,23,12],[48,2,48,5],[48,6,48,9],[48,10,48,14],[26,15,27,15],[27,9,27,14],[28,9,28,14],[29,9,34,14],[35,9,35,14],[36,9,36,14],[39,2,39,14],[46,2,46,14],[47,2,47,5],[47,6,47,9],[47,10,47,14],[49,2,49,5],[49,6,49,9],[49,10,49,14],[50,2,50,5],[50,6,50,9],[50,10,50,14],[51,2,51,5],[51,6,51,9],[51,10,51,14],[52,2,52,5],[52,6,52,9],[52,10,52,14],[53,2,53,5],[53,6,53,9],[53,10,53,14],[54,2,54,5],[54,6,54,9],[54,10,54,14]]}
[]
[null,"      REGRESAR"]
[]
[]
[null,null,null,null,"MACROPROCESO ESTRATÉGICO",null,null,null,null,null,null,null,"CÓDIGO: ESGr027"]
[null,null,null,null,"PROCESO GESTIÓN SISTEMAS INTEGRADOS",null,null,null,null,null,null,null,"VERSIÓN: 8"]
[null,null,null,null,"MATRIZ DE MEDICIÓN Y SEGUIMIENTO A LOS PROCESOS DE GESTIÓN",null,null,null,null,null,null,null,"VIGENCIA: 2023-07-28"]
[null,null,null,null,null,null,null,null,null,null,null,null,"PÁGINA: 3 de 8"]
[]
[null,null,"FICHA DE INDICADOR"]
[]
[null,null,"MACROPROCESO",null,"Apoyo",null,null,null,"NOMBRE DEL INDICADOR",null,"Calibración de equipo y elementos educativos de investigación"]
[null,null,"PROCESO GESTIÓN",null,"Apoyo Académico"]
[null,null,"RESPONSABLE DE MEDICIÓN",null,"Jefe de la Unidad de Apoyo Académico"]
[]
[null,null,"1. COMPORTAMIENTO DE INDICADOR"]
[null,null,"CLASIFICACIÓN DE LA MEDICIÓN",null,1,null,null,"TIPO DE INDICADOR",null,"Eficacia",null,"META ANUAL",null,1]
[null,null,"FORMULA",null,"NUMERADOR",null,"Total de equipos con calibración realizada *100",null,null,null,null,"UNIDAD DE MEDIDA",null,"Porcentual"]
[null,null,null,null,"DENOMINADOR",null," 100% del total de equipos reportados por la Dirección de Investigación y con presupuesto asignado"]
[null,null,"TENDENCIA",null,"Positiva",null,null,"NIVEL DE SEGREGACIÓN *",null,"No Aplica",null,"ESCALA"]
[null,null,null,null,null,null,null,null,null,null,null,"Deficiente","Aceptable","Bueno","Excelente"]
[null,null,null,null,null,null,null,null,null,null,null,"0 - 60%","61% - 80%","80,1% - 100%","N/A"]
[null,null,"ORIGEN DE DATOS NUMERADOR",null,"Seguimiento Ejecución Presupuestal Apoyo Académico - Certificaciones de Calibración",null,null,"FRECUENCIA DE LA MEDICIÓN",null,"SEMESTRAL",null,"FRECUENCIA DE RESULTADO",null,"ANUAL"]
[null,null,"ORIGEN DE DATOS DENOMINADOR",null,"Seguimiento Ejecución Presupuestal Apoyo Académico - Reporte base de datos"]
[]
[null,null,"RESULTADOS"]
[null,null,null,null,null,null,null,null,null,"ANÁLISIS DE DATOS"]
[null,null,null,null,null,null,null,null,null,"\nEn el contrato F-OCS-098 del 2023, se priorizó la calibración, mantenimiento preventivo y correctivo de 42 equipos de investigación. Durante el segundo semestre del mismo año, el contratista llevó a cabo el 100% de la calibración de dichos equipos, . Esto garantizó la funcionalidad de los equipos para los proyectos de investigación de la Universidad de Cundinamarca."]
[null,null,null,null,null,null,null,null,null,"ACCIÓN FORMULADA"]
[null,null,null,null,null,null,null,null,null,"Debido a que el proceso de calibración se lleva a cabo en colaboración con la Dirección de Investigación, se han experimentado retrasos en la entrega de la información sobre los equipos sometidos a calibración. Por esta razón, solicitamos que se genere un reporte oportuno de dichos elementos, con el objetivo de garantizar resultados positivos en la medición del indicador. \n\n\n\n"]
[]
[]
[]
[]
[]
[null,null,null,null,null,null,null,null,null,"RESPONSABLE "]
[null,null,null,null,null,null,null,null,null,{"$f":"E14","v":"Jefe de la Unidad de Apoyo Académico"}]
[]
[]
[null,null,"PERIODO DE EVALUACIÓN"]
[null,null,"MES",{"$f":"IF(J23=\"MENSUAL\",\"ENERO\",IF(J23=\"TRIMESTRAL\",\"MARZO\",IF(J23=\"SEMESTRAL\",\"JUNIO\",IF(J23=\"ANUAL\",YEAR(TODAY()),\"\"))))","v":"JUNIO"},{"$f":"IF(J23=\"MENSUAL\",\"FEBRERO\",IF(J23=\"TRIMESTRAL\",\"JUNIO\",IF(J23=\"SEMESTRAL\",\"DICIEMBRE\",\"\")))","v":"DICIEMBRE"},{"$f":"IF(J23=\"MENSUAL\",\"MARZO\",IF(J23=\"TRIMESTRAL\",\"SEPTIEMBRE\",\"\"))","v":""},{"$f":"IF(J23=\"MENSUAL\",\"ABRIL\",IF(J23=\"TRIMESTRAL\",\"DICIEMBRE\",\"\"))","v":""},{"$f":"IF(J23=\"MENSUAL\",\"MAYO\",\"\")","v":""},{"$f":"IF(J23=\"MENSUAL\",\"JUNIO\",\"\")","v":""},{"$f":"IF(J23=\"MENSUAL\",\"JULIO\",\"\")","v":""},{"$f":"IF(J23=\"MENSUAL\",\"AGOSTO\",\"\")","v":""},{"$f":"IF(J23=\"MENSUAL\",\"SEPTIEMBRE\",\"\")","v":""},{"$f":"IF(J23=\"MENSUAL\",\"OCTUBRE\",\"\")","v":""},{"$f":"IF(J23=\"MENSUAL\",\"NOVIEMBRE\",\"\")","v":""},{"$f":"IF(J23=\"MENSUAL\",\"DICIEMBRE\",\"\")","v":""}]
[null,null,{"$f":"G18","v":"Total de equipos con calibración realizada *100"},0,42]
[null,null,{"$f":"G19","v":" 100% del total de equipos reportados por la Dirección de Investigación y con presupuesto asignado"},42,42]
[null,null,"VALOR ",{"$f":"IFERROR(IF($E$17=1,D42/D43,IF($E$17=2,D42,\"\")),\"\")","v":0},1,"","","","","","","","","",""]
[null,null,"META PONDERADA",{"$f":"IF(AND(N23=\"ANUAL\",J23=\"MENSUAL\"),N17/12,IF(AND(N23=\"ANUAL\",J23=\"TRIMESTRAL\"),N17/4,IF(AND(N23=\"ANUAL\",J23=\"SEMESTRAL\"),N17/2,IF(AND(N23=\"ANUAL\",J23=\"ANUAL\"),N17,IF(AND(N23=\"SEMESTRAL\",J23=\"MENSUAL\"),N17/6,IF(AND(N23=\"SEMESTRAL\",J23=\"TRIMESTRAL\"),N17/2,IF(AND(N23=\"SEMESTRAL\",J23=\"SEMESTRAL\"),N17,IF(AND(N23=\"SEMESTRAL\",J23=\"ANUAL\"),\"REVISAR FRECUENCIAS\",IF(AND(N23=\"TRIMESTRAL\",J23=\"MENSUAL\"),N17/3,IF(AND(N23=\"TRIMESTRAL\",J23=\"TRIMESTRAL\"),N17,IF(AND(N23=\"TRIMESTRAL\",J23=\"SEMESTRAL\"),\"REVISAR FRECUENCIAS\",IF(AND(N23=\"TRIMESTRAL\",J23=\"ANUAL\"),\"REVISAR FRECUENCIAS\",IF(AND(N23=\"MENSUAL\",J23=\"MENSUAL\"),N17,IF(AND(N23=\"MENSUAL\",J23=\"TRIMESTRAL\"),\"REVISAR FRECUENCIAS\",IF(AND(N23=\"MENSUAL\",J23=\"SEMESTRAL\"),\"REVISAR FRECUENCIAS\",IF(AND(N23=\"MENSUAL\",J23=\"ANUAL\"),\"REVISAR FRECUENCIAS\",\"\"))))))))))))))))","v":0.5},{"$f":"IF(AND(N23=\"ANUAL\",J23=\"MENSUAL\"),N17/12+D45,IF(AND(N23=\"ANUAL\",J23=\"TRIMESTRAL\"),N17/4+D45,IF(AND(N23=\"ANUAL\",J23=\"SEMESTRAL\"),N17/2+D45,IF(AND(N23=\"SEMESTRAL\",J23=\"MENSUAL\"),N17/6+D45,IF(AND(N23=\"SEMESTRAL\",J23=\"TRIMESTRAL\"),N17/2+D45,IF(AND(N23=\"SEMESTRAL\",J23=\"SEMESTRAL\"),N17,IF(AND(N23=\"TRIMESTRAL\",J23=\"MENSUAL\"),N17/3+D45,IF(AND(N23=\"TRIMESTRAL\",J23=\"TRIMESTRAL\"),N17,IF(AND(N23=\"MENSUAL\",J23=\"MENSUAL\"),N17,\"\")))))))))","v":1},{"$f":"IF(AND(N23=\"ANUAL\",J23=\"MENSUAL\"),N17/12+E45,IF(AND(N23=\"ANUAL\",J23=\"TRIMESTRAL\"),N17/4+E45,IF(AND(N23=\"SEMESTRAL\",J23=\"MENSUAL\"),N17/6+E45,IF(AND(N23=\"SEMESTRAL\",J23=\"TRIMESTRAL\"),N17/2,IF(AND(N23=\"TRIMESTRAL\",J23=\"MENSUAL\"),N17/3+E45,IF(AND(N23=\"TRIMESTRAL\",J23=\"TRIMESTRAL\"),N17,IF(AND(N23=\"MENSUAL\",J23=\"MENSUAL\"),N17,\"\")))))))","v":""},{"$f":"IF(AND(N23=\"ANUAL\",J23=\"MENSUAL\"),N17/12+F45,IF(AND(N23=\"ANUAL\",J23=\"TRIMESTRAL\"),N17/4+F45,IF(AND(N23=\"SEMESTRAL\",J23=\"MENSUAL\"),N17/6+F45,IF(AND(N23=\"SEMESTRAL\",J23=\"TRIMESTRAL\"),N17/2+F45,IF(AND(N23=\"TRIMESTRAL\",J23=\"MENSUAL\"),N17/3,IF(AND(N23=\"TRIMESTRAL\",J23=\"TRIMESTRAL\"),N17,IF(AND(N23=\"MENSUAL\",J23=\"MENSUAL\"),N17,\"\")))))))","v":""},{"$f":"IF(AND($N$23=\"ANUAL\",$J$23=\"MENSUAL\"),$N$17/12+G45,IF(AND(N23=\"SEMESTRAL\",J23=\"MENSUAL\"),N17/6+G45,IF(AND(N23=\"TRIMESTRAL\",J23=\"MENSUAL\"),N17/3+G45,IF(AND(N23=\"MENSUAL\",J23=\"MENSUAL\"),N17,\"\"))))","v":""},{"$f":"IF(AND($N$23=\"ANUAL\",$J$23=\"MENSUAL\"),$N$17/12+H45,IF(AND(N23=\"SEMESTRAL\",J23=\"MENSUAL\"),N17/6+H45,IF(AND(N23=\"TRIMESTRAL\",J23=\"MENSUAL\"),N17/3+H45,IF(AND(N23=\"MENSUAL\",J23=\"MENSUAL\"),N17,\"\"))))","v":""},{"$f":"IF(AND($N$23=\"ANUAL\",$J$23=\"MENSUAL\"),$N$17/12+I45,IF(AND(N23=\"SEMESTRAL\",J23=\"MENSUAL\"),N17/6,IF(AND(N23=\"TRIMESTRAL\",J23=\"MENSUAL\"),N17/3,IF(AND(N23=\"MENSUAL\",J23=\"MENSUAL\"),N17,\"\"))))","v":""},{"$f":"IF(AND($N$23=\"ANUAL\",$J$23=\"MENSUAL\"),$N$17/12+J45,IF(AND(N23=\"SEMESTRAL\",J23=\"MENSUAL\"),N17/6+J45,IF(AND(N23=\"TRIMESTRAL\",J23=\"MENSUAL\"),N17/3+J45,IF(AND(N23=\"MENSUAL\",J23=\"MENSUAL\"),N17,\"\"))))","v":""},{"$f":"IF(AND($N$23=\"ANUAL\",$J$23=\"MENSUAL\"),$N$17/12+K45,IF(AND(N23=\"SEMESTRAL\",J23=\"MENSUAL\"),N17/6+K45,IF(AND(N23=\"TRIMESTRAL\",J23=\"MENSUAL\"),N17/3+K45,IF(AND(N23=\"MENSUAL\",J23=\"MENSUAL\"),N17,\"\"))))","v":""},{"$f":"IF(AND($N$23=\"ANUAL\",$J$23=\"MENSUAL\"),$N$17/12+L45,IF(AND(N23=\"SEMESTRAL\",J23=\"MENSUAL\"),N17/6+L45,IF(AND(N23=\"TRIMESTRAL\",J23=\"MENSUAL\"),N17/3,IF(AND(N23=\"MENSUAL\",J23=\"MENSUAL\"),N17,\"\"))))","v":""},{"$f":"IF(AND($N$23=\"ANUAL\",$J$23=\"MENSUAL\"),$N$17/12+M45,IF(AND(N23=\"SEMESTRAL\",J23=\"MENSUAL\"),N17/6+M45,IF(AND(N23=\"TRIMESTRAL\",J23=\"MENSUAL\"),N17/3+M45,IF(AND(N23=\"MENSUAL\",J23=\"MENSUAL\"),N17,\"\"))))","v":""},{"$f":"IF(AND($N$23=\"ANUAL\",$J$23=\"MENSUAL\"),$N$17/12+N45,IF(AND(N23=\"SEMESTRAL\",J23=\"MENSUAL\"),N17/6+N45,IF(AND(N23=\"TRIMESTRAL\",J23=\"MENSUAL\"),N17/3+N45,IF(AND(N23=\"MENSUAL\",J23=\"MENSUAL\"),N17,\"\"))))","v":""}]
[]
[null,null,"NIVEL DE SEGREGACIÓN *"]
[null,null,"UNIDAD SEGREGADA (Ej. Facultad, Programa Académico, Área)",null,null,null,"RESULTADO",null,null,null,"ANALISIS DE DATOS SEGREGADO"]
[]
[]
[]
[]
[]
[]
[]
[]
[]
[]
[]
[]
[]
[]
[]
[]
[]
[]
[null,null,null,null,null,null,"Estratégico",null,null,"Eficacia"]
[null,null,null,null,null,null,"Misional",null,null,"Eficiencia"]
[null,null,null,null,null,null,"Apoyo",null,null,"Acreditación"]
[null,null,null,null,null,null,"Seguimiento, Medición, Análisis y Evaluación",null,null,"Positiva"]
[null,null,null,null,null,null,"Direccionamiento Estratégico",null,null,"Negativa"]
[null,null,null,null,null,null,"Planeación Institucional",null,null,"Por Unidad Regional"]
[null,null,null,null,null,null,"Proyectos Especiales y Relaciones Interinstitucionales",null,null,"Por Facultad"]
[null,null,null,null,null,null,"Sistemas Integrados",null,null,"Por Programa Académico"]
[null,null,null,null,null,null,"Autoevaluación y Acreditación",null,null,"Por área"]
[null,null,null,null,null,null,"Comunicaciones",null,null,"Por Laboratorio"]
[null,null,null,null,null,null,"Formación y Aprendizaje",null,null,"Otros"]
[null,null,null,null,null,null,"Ciencia, Tecnología e Innovación",null,null,"No Aplica"]
[null,null,null,null,null,null,"Interacción Social Universitaria"]
[null,null,null,null,null,null,"Bienestar Universitario"]
[null,null,null,null,null,null,"Admisiones y Registro"]
[null,null,null,null,null,null,"Graduados"]
[null,null,null,null,null,null,"Dialogando con el Mundo"]
[null,null,null,null,null,null,"Talento Humano"]
[null,null,null,null,null,null,"Jurídica"]
[null,null,null,null,null,null,"Financiera"]
[null,null,null,null,null,null,"Sistemas y Tecnología"]
[null,null,null,null,null,null,"Bienes y Servicios"]
[null,null,null,null,null,null,"Documental"]
[null,null,null,null,null,null,"Apoyo Académico"]
[null,null,null,null,null,null,"Control Interno"]
[null,null,null,null,null,null,"Control Disciplinario"]
[null,null,null,null,null,null,"Servicio de Atención al Ciudadano"]

{"sheet":"AAA-5","index":3,"n_rows":98,"n_cols":19,"rows_kept":98,"cut":false,"hidden":false,"merged":[[1,1,3,2],[4,2,7,3],[4,4,4,11],[4,12,4,14],[5,4,5,11],[5,12,5,14],[6,4,7,11],[6,12,6,14],[7,12,7,14],[15,2,15,14],[8,2,8,14],[9,2,10,14],[11,2,11,3],[11,4,11,7],[11,8,11,9],[11,10,11,14],[12,2,12,3],[12,4,12,14],[13,2,13,3],[13,4,13,14],[14,2,14,14],[16,15,17,15],[17,2,18,3],[17,4,17,5],[17,6,17,10],[17,11,18,12],[17,13,18,14],[18,4,18,5],[18,6,18,10],[16,2,16,3],[16,4,16,6],[16,7,16,8],[16,9,16,10],[16,11,16,12],[16,13,16,14],[19,2,21,3],[19,4,21,6],[19,7,21,8],[19,9,21,10],[19,11,19,14],[22,13,23,14],[23,2,23,3],[23,4,23,6],[25,2,25,14],[26,2,42,8],[26,9,26,14],[42,9,42,14],[22,2,22,3],[22,4,22,6],[22,7,23,8],[22,9,23,10],[22,11,23,12],[53,2,53,5],[53,6,53,9],[53,10,53,14],[26,15,27,15],[27,9,32,14],[33,9,33,14],[34,9,39,14],[40,9,40,14],[41,9,41,14],[44,2,44,14],[51,2,51,14],[52,2,52,5],[52,6,52,9],[52,10,52,14],[54,2,54,5],[54,6,54,9],[54,10,54,14],[55,2,55,5],[55,6,55,9],[55,10,55,14],[56,2,56,5],[56,6,56,9],[56,10,56,14],[57,2,57,5],[57,6,57,9],[57,10,57,14],[58,2,58,5],[58,6,58,9],[58,10,58,14],[59,2,59,5],[59,6,59,9],[59,10,59,14]]}
[]
[null,"      REGRESAR"]
[]
[]
[null,null,null,null,"MACROPROCESO ESTRATÉGICO",null,null,null,null,null,null,null,"CÓDIGO: ESGr027"]
[null,null,null,null,"PROCESO GESTIÓN SISTEMAS INTEGRADOS",null,null,null,null,null,null,null,"VERSIÓN: 8"]
[null,null,null,null,"MATRIZ DE MEDICIÓN Y SEGUIMIENTO A LOS PROCESOS DE GESTIÓN",null,null,null,null,null,null,null,"VIGENCIA: 2023-07-28"]
[null,null,null,null,null,null,null,null,null,null,null,null,"PÁGINA: 4 de 8"]
[]
[null,null,"FICHA DE INDICADOR"]
[]
[null,null,"MACROPROCESO",null,"Apoyo",null,null,null,"NOMBRE DEL INDICADOR",null,"Mantenimiento a Elementos Educativos"]
[null,null,"PROCESO GESTIÓN",null,"Apoyo Académico"]
[null,null,"RESPONSABLE DE MEDICIÓN",null,"Jefe de la Unidad de Apoyo Académico"]
[null,null,null,null,null,null,null,null,null,null,null,null,null,null,null,null,null,null,{"$f":"+S15:T15","v":0}]
[null,null,"1. COMPORTAMIENTO DE INDICADOR"]
[null,null,"CLASIFICACIÓN DE LA MEDICIÓN",null,1,null,null,"TIPO DE INDICADOR",null,"Eficacia",null,"META ANUAL",null,1]
[null,null,"FORMULA",null,"NUMERADOR",null," Total de Elementos Educativos Con Mantenimiento Realizado *100",null,null,null,null,"UNIDAD DE MEDIDA",null,"Porcentual"]
[null,null,null,null,"DENOMINADOR",null," Total de Elementos Educativos que Requieren Mantenimiento de acuerdo a Priorización"]
[null,null,"TENDENCIA",null,"Positiva",null,null,"NIVEL DE SEGREGACIÓN *",null,"No Aplica",null,"ESCALA"]
[null,null,null,null,null,null,null,null,null,null,null,"Deficiente","Aceptable","Bueno","Excelente"]
[null,null,null,null,null,null,null,null,null,null,null,"0 < 60%","60% - 80%","80,1%  - 100%","N/A"]
[null,null,"ORIGEN DE DATOS NUMERADOR",null,"Seguimiento Ejecución Presupuestal Apoyo Académico",null,null,"FRECUENCIA DE LA MEDICIÓN",null,"SEMESTRAL",null,"FRECUENCIA DE RESULTADO",null,"ANUAL"]
[null,null,"ORIGEN DE DATOS DENOMINADOR",null,"Seguimiento Ejecución Presupuestal Apoyo Académico - formato AAAF054"]
[]
[null,null,"RESULTADOS"]
[null,null,null,null,null,null,null,null,null,"ANÁLISIS DE DATOS"]
[null,null,null,null,null,null,null,null,null,"\nEn el año 2023, se planificaron un total de 14 procesos de mantenimiento, de los cuales se ejecutaron 13 procesos contractuales. El proceso ABS-FCD-205 \"mantenimiento correctivo y preventivo Unidades Agroambientales de la Universidad de Cundinamarca\" se dio pro desierto debido a la falta de ofertas recibidas. En consecuencia, durante el año 2023, se llevó a cabo el mantenimiento de un total de 761 equipos, de los 1010 inicialmente proyectados.\n\n-\tHas 200 Extensión Soacha.\n-\tLaboratorios de Telemática, Electrónica y Ciencias Básicas de la sede Fusagasugá.\n-\tInstrumentos musicales en la seccional de Zipaquirá.\n-\tPantallas interactivas en la sede Fusagasugá y Extensión Facatativá.\n-\tRecursos topográficos en la sede Fusagasugá y Extensión Facatativá.\n-Laboratorio de Aguas Seccional Girardot \n- Maquinas de los gimnasios de la sede Fusagasugá y extensión Soacha\n- Laboratorio de microbiología \n- Impresoras 3D\n\n\n"]
[]
[]
[]
[]
[]
[null,null,null,null,null,null,null,null,null,"ACCIÓN FORMULADA"]
[null,null,null,null,null,null,null,null,null,"para la vigencia 2023 se puede resaltar que desde la Unidad de Apoyo Académico se gestiono el proceso para ejecutar al 100% los mantenimientos proyectados, no obstante existieron demoras en el proceso de selección de oferente para cada proceso contractual, lo cual derivó en un retraso en el tiempo de ejecución de cada mantenimiento , dando como resultado que 203 equipos iniciaran su proceso en el año 2024;"]
[]
[]
[]
[]
[]
[null,null,null,null,null,null,null,null,null,"RESPONSABLE "]
[null,null,null,null,null,null,null,null,null,{"$f":"E14","v":"Jefe de la Unidad de Apoyo Académico"}]
[]
[]
[null,null,"PERIODO DE EVALUACIÓN"]
[null,null,"MES",{"$f":"IF(J23=\"MENSUAL\",\"ENERO\",IF(J23=\"TRIMESTRAL\",\"MARZO\",IF(J23=\"SEMESTRAL\",\"JUNIO\",IF(J23=\"ANUAL\",YEAR(TODAY()),\"\"))))","v":"JUNIO"},{"$f":"IF(J23=\"MENSUAL\",\"FEBRERO\",IF(J23=\"TRIMESTRAL\",\"JUNIO\",IF(J23=\"SEMESTRAL\",\"DICIEMBRE\",\"\")))","v":"DICIEMBRE"},{"$f":"IF(J23=\"MENSUAL\",\"MARZO\",IF(J23=\"TRIMESTRAL\",\"SEPTIEMBRE\",\"\"))","v":""},{"$f":"IF(J23=\"MENSUAL\",\"ABRIL\",IF(J23=\"TRIMESTRAL\",\"DICIEMBRE\",\"\"))","v":""},{"$f":"IF(J23=\"MENSUAL\",\"MAYO\",\"\")","v":""},{"$f":"IF(J23=\"MENSUAL\",\"JUNIO\",\"\")","v":""},{"$f":"IF(J23=\"MENSUAL\",\"JULIO\",\"\")","v":""},{"$f":"IF(J23=\"MENSUAL\",\"AGOSTO\",\"\")","v":""},{"$f":"IF(J23=\"MENSUAL\",\"SEPTIEMBRE\",\"\")","v":""},{"$f":"IF(J23=\"MENSUAL\",\"OCTUBRE\",\"\")","v":""},{"$f":"IF(J23=\"MENSUAL\",\"NOVIEMBRE\",\"\")","v":""},{"$f":"IF(J23=\"MENSUAL\",\"DICIEMBRE\",\"\")","v":""}]
[null,null,{"$f":"G18","v":" Total de Elementos Educativos Con Mantenimiento Realizado *100"},505,761]
[null,null,{"$f":"G19","v":" Total de Elementos Educativos que Requieren Mantenimiento de acuerdo a Priorización"},1010,1010]
[null,null,"VALOR ",{"$f":"IFERROR(IF($E$17=1,D47/D48,IF($E$17=2,D47,\"\")),\"\")","v":0.5},0.75346534653465347,"","","","","","","","","",""]
[null,null,"META PONDERADA",{"$f":"IF(AND(N23=\"ANUAL\",J23=\"MENSUAL\"),N17/12,IF(AND(N23=\"ANUAL\",J23=\"TRIMESTRAL\"),N17/4,IF(AND(N23=\"ANUAL\",J23=\"SEMESTRAL\"),N17/2,IF(AND(N23=\"ANUAL\",J23=\"ANUAL\"),N17,IF(AND(N23=\"SEMESTRAL\",J23=\"MENSUAL\"),N17/6,IF(AND(N23=\"SEMESTRAL\",J23=\"TRIMESTRAL\"),N17/2,IF(AND(N23=\"SEMESTRAL\",J23=\"SEMESTRAL\"),N17,IF(AND(N23=\"SEMESTRAL\",J23=\"ANUAL\"),\"REVISAR FRECUENCIAS\",IF(AND(N23=\"TRIMESTRAL\",J23=\"MENSUAL\"),N17/3,IF(AND(N23=\"TRIMESTRAL\",J23=\"TRIMESTRAL\"),N17,IF(AND(N23=\"TRIMESTRAL\",J23=\"SEMESTRAL\"),\"REVISAR FRECUENCIAS\",IF(AND(N23=\"TRIMESTRAL\",J23=\"ANUAL\"),\"REVISAR FRECUENCIAS\",IF(AND(N23=\"MENSUAL\",J23=\"MENSUAL\"),N17,IF(AND(N23=\"MENSUAL\",J23=\"TRIMESTRAL\"),\"REVISAR FRECUENCIAS\",IF(AND(N23=\"MENSUAL\",J23=\"SEMESTRAL\"),\"REVISAR FRECUENCIAS\",IF(AND(N23=\"MENSUAL\",J23=\"ANUAL\"),\"REVISAR FRECUENCIAS\",\"\"))))))))))))))))","v":0.5},{"$f":"IF(AND(N23=\"ANUAL\",J23=\"MENSUAL\"),N17/12+D50,IF(AND(N23=\"ANUAL\",J23=\"TRIMESTRAL\"),N17/4+D50,IF(AND(N23=\"ANUAL\",J23=\"SEMESTRAL\"),N17/2+D50,IF(AND(N23=\"SEMESTRAL\",J23=\"MENSUAL\"),N17/6+D50,IF(AND(N23=\"SEMESTRAL\",J23=\"TRIMESTRAL\"),N17/2+D50,IF(AND(N23=\"SEMESTRAL\",J23=\"SEMESTRAL\"),N17,IF(AND(N23=\"TRIMESTRAL\",J23=\"MENSUAL\"),N17/3+D50,IF(AND(N23=\"TRIMESTRAL\",J23=\"TRIMESTRAL\"),N17,IF(AND(N23=\"MENSUAL\",J23=\"MENSUAL\"),N17,\"\")))))))))","v":1},{"$f":"IF(AND(N23=\"ANUAL\",J23=\"MENSUAL\"),N17/12+E50,IF(AND(N23=\"ANUAL\",J23=\"TRIMESTRAL\"),N17/4+E50,IF(AND(N23=\"SEMESTRAL\",J23=\"MENSUAL\"),N17/6+E50,IF(AND(N23=\"SEMESTRAL\",J23=\"TRIMESTRAL\"),N17/2,IF(AND(N23=\"TRIMESTRAL\",J23=\"MENSUAL\"),N17/3+E50,IF(AND(N23=\"TRIMESTRAL\",J23=\"TRIMESTRAL\"),N17,IF(AND(N23=\"MENSUAL\",J23=\"MENSUAL\"),N17,\"\")))))))","v":""},{"$f":"IF(AND(N23=\"ANUAL\",J23=\"MENSUAL\"),N17/12+F50,IF(AND(N23=\"ANUAL\",J23=\"TRIMESTRAL\"),N17/4+F50,IF(AND(N23=\"SEMESTRAL\",J23=\"MENSUAL\"),N17/6+F50,IF(AND(N23=\"SEMESTRAL\",J23=\"TRIMESTRAL\"),N17/2+F50,IF(AND(N23=\"TRIMESTRAL\",J23=\"MENSUAL\"),N17/3,IF(AND(N23=\"TRIMESTRAL\",J23=\"TRIMESTRAL\"),N17,IF(AND(N23=\"MENSUAL\",J23=\"MENSUAL\"),N17,\"\")))))))","v":""},{"$f":"IF(AND($N$23=\"ANUAL\",$J$23=\"MENSUAL\"),$N$17/12+G50,IF(AND(N23=\"SEMESTRAL\",J23=\"MENSUAL\"),N17/6+G50,IF(AND(N23=\"TRIMESTRAL\",J23=\"MENSUAL\"),N17/3+G50,IF(AND(N23=\"MENSUAL\",J23=\"MENSUAL\"),N17,\"\"))))","v":""},{"$f":"IF(AND($N$23=\"ANUAL\",$J$23=\"MENSUAL\"),$N$17/12+H50,IF(AND(N23=\"SEMESTRAL\",J23=\"MENSUAL\"),N17/6+H50,IF(AND(N23=\"TRIMESTRAL\",J23=\"MENSUAL\"),N17/3+H50,IF(AND(N23=\"MENSUAL\",J23=\"MENSUAL\"),N17,\"\"))))","v":""},{"$f":"IF(AND($N$23=\"ANUAL\",$J$23=\"MENSUAL\"),$N$17/12+I50,IF(AND(N23=\"SEMESTRAL\",J23=\"MENSUAL\"),N17/6,IF(AND(N23=\"TRIMESTRAL\",J23=\"MENSUAL\"),N17/3,IF(AND(N23=\"MENSUAL\",J23=\"MENSUAL\"),N17,\"\"))))","v":""},{"$f":"IF(AND($N$23=\"ANUAL\",$J$23=\"MENSUAL\"),$N$17/12+J50,IF(AND(N23=\"SEMESTRAL\",J23=\"MENSUAL\"),N17/6+J50,IF(AND(N23=\"TRIMESTRAL\",J23=\"MENSUAL\"),N17/3+J50,IF(AND(N23=\"MENSUAL\",J23=\"MENSUAL\"),N17,\"\"))))","v":""},{"$f":"IF(AND($N$23=\"ANUAL\",$J$23=\"MENSUAL\"),$N$17/12+K50,IF(AND(N23=\"SEMESTRAL\",J23=\"MENSUAL\"),N17/6+K50,IF(AND(N23=\"TRIMESTRAL\",J23=\"MENSUAL\"),N17/3+K50,IF(AND(N23=\"MENSUAL\",J23=\"MENSUAL\"),N17,\"\"))))","v":""},{"$f":"IF(AND($N$23=\"ANUAL\",$J$23=\"MENSUAL\"),$N$17/12+L50,IF(AND(N23=\"SEMESTRAL\",J23=\"MENSUAL\"),N17/6+L50,IF(AND(N23=\"TRIMESTRAL\",J23=\"MENSUAL\"),N17/3,IF(AND(N23=\"MENSUAL\",J23=\"MENSUAL\"),N17,\"\"))))","v":""},{"$f":"IF(AND($N$23=\"ANUAL\",$J$23=\"MENSUAL\"),$N$17/12+M50,IF(AND(N23=\"SEMESTRAL\",J23=\"MENSUAL\"),N17/6+M50,IF(AND(N23=\"TRIMESTRAL\",J23=\"MENSUAL\"),N17/3+M50,IF(AND(N23=\"MENSUAL\",J23=\"MENSUAL\"),N17,\"\"))))","v":""},{"$f":"IF(AND($N$23=\"ANUAL\",$J$23=\"MENSUAL\"),$N$17/12+N50,IF(AND(N23=\"SEMESTRAL\",J23=\"MENSUAL\"),N17/6+N50,IF(AND(N23=\"TRIMESTRAL\",J23=\"MENSUAL\"),N17/3+N50,IF(AND(N23=\"MENSUAL\",J23=\"MENSUAL\"),N17,\"\"))))","v":""}]
[]
[null,null,"NIVEL DE SEGREGACIÓN *"]
[null,null,"UNIDAD SEGREGADA (Ej. Facultad, Programa Académico, Área)",null,null,null,"RESULTADO",null,null,null,"ANALISIS DE DATOS SEGREGADO"]
[]
[]
[]
[]
[]
[]
[]
[]
[]
[]
[]
[]
[]
[]
[]
[]
[]
[]
[null,null,null,null,null,null,"Estratégico",null,null,"Eficacia"]
[null,null,null,null,null,null,"Misional",null,null,"Eficiencia"]
[null,null,null,null,null,null,"Apoyo",null,null,"Acreditación"]
[null,null,null,null,null,null,"Seguimiento, Medición, Análisis y Evaluación",null,null,"Positiva"]
[null,null,null,null,null,null,"Direccionamiento Estratégico",null,null,"Negativa"]
[null,null,null,null,null,null,"Planeación Institucional",null,null,"Por Unidad Regional"]
[null,null,null,null,null,null,"Proyectos Especiales y Relaciones Interinstitucionales",null,null,"Por Facultad"]
[null,null,null,null,null,null,"Sistemas Integrados",null,null,"Por Programa Académico"]
[null,null,null,null,null,null,"Autoevaluación y Acreditación",null,null,"Por área"]
[null,null,null,null,null,null,"Comunicaciones",null,null,"Por Laboratorio"]
[null,null,null,null,null,null,"Formación y Aprendizaje",null,null,"Otros"]
[null,null,null,null,null,null,"Ciencia, Tecnología e Innovación",null,null,"No Aplica"]
[null,null,null,null,null,null,"Interacción Social Universitaria"]
[null,null,null,null,null,null,"Bienestar Universitario"]
[null,null,null,null,null,null,"Admisiones y Registro"]
[null,null,null,null,null,null,"Graduados"]
[null,null,null,null,null,null,"Dialogando con el Mundo"]
[null,null,null,null,null,null,"Talento Humano"]
[null,null,null,null,null,null,"Jurídica"]
[null,null,null,null,null,null,"Financiera"]
[null,null,null,null,null,null,"Sistemas y Tecnología"]
[null,null,null,null,null,null,"Bienes y Servicios"]
[null,null,null,null,null,null,"Documental"]
[null,null,null,null,null,null,"Apoyo Académico"]
[null,null,null,null,null,null,"Control Interno"]
[null,null,null,null,null,null,"Control Disciplinario"]
[null,null,null,null,null,null,"Servicio de Atención al Ciudadano"]

{"sheet":"AAA-9","index":4,"n_rows":96,"n_cols":15,"rows_kept":96,"cut":false,"hidden":false,"merged":[[1,1,3,2],[4,2,7,3],[4,4,4,11],[4,12,4,14],[5,4,5,11],[5,12,5,14],[6,4,7,11],[6,12,6,14],[7,12,7,14],[15,2,15,14],[8,2,8,14],[9,2,10,14],[11,2,11,3],[11,4,11,7],[11,8,11,9],[11,10,11,14],[12,2,12,3],[12,4,12,14],[13,2,13,3],[13,4,13,14],[14,2,14,14],[16,15,17,15],[17,2,18,3],[17,4,17,5],[17,6,17,10],[17,11,18,12],[17,13,18,14],[18,4,18,5],[18,6,18,10],[16,2,16,3],[16,4,16,6],[16,7,16,8],[16,9,16,10],[16,11,16,12],[16,13,16,14],[19,2,21,3],[19,4,21,6],[19,7,21,8],[19,9,21,10],[19,11,19,14],[22,13,23,14],[23,2,23,3],[23,4,23,6],[25,2,25,14],[26,2,42,8],[26,9,26,14],[42,9,42,14],[22,2,22,3],[22,4,22,6],[22,7,23,8],[22,9,23,10],[22,11,23,12],[53,2,53,5],[53,6,53,9],[53,10,53,14],[26,15,27,15],[27,9,32,14],[33,9,33,14],[34,9,39,14],[40,9,40,14],[41,9,41,14],[44,2,44,14],[51,2,51,14],[52,2,52,5],[52,6,52,9],[52,10,52,14],[54,2,54,5],[54,6,54,9],[54,10,54,14],[55,2,55,5],[55,6,55,9],[55,10,55,14],[56,2,56,5],[56,6,56,9],[56,10,56,14],[57,2,57,5],[57,6,57,9],[57,10,57,14],[58,2,58,5],[58,6,58,9],[58,10,58,14],[59,2,59,5],[59,6,59,9],[59,10,59,14]]}
[]
[null,"      REGRESAR"]
[]
[]
[null,null,null,null,"MACROPROCESO ESTRATÉGICO",null,null,null,null,null,null,null,"CÓDIGO: ESGr027"]
[null,null,null,null,"PROCESO GESTIÓN SISTEMAS INTEGRADOS",null,null,null,null,null,null,null,"VERSIÓN: 8"]
[null,null,null,null,"MATRIZ DE MEDICIÓN Y SEGUIMIENTO A LOS PROCESOS DE GESTIÓN",null,null,null,null,null,null,null,"VIGENCIA: 2023-07-28"]
[null,null,null,null,null,null,null,null,null,null,null,null,"PÁGINA: 5 de 8"]
[]
[null,null,"FICHA DE INDICADOR"]
[]
[null,null,"MACROPROCESO",null,"Apoyo",null,null,null,"NOMBRE DEL INDICADOR",null,"Suficiencia de elementos educativos "]
[null,null,"PROCESO GESTIÓN",null,"Apoyo Académico"]
[null,null,"RESPONSABLE DE MEDICIÓN",null,"Jefe de la Unidad de Apoyo Académico"]
[]
[null,null,"1. COMPORTAMIENTO DE INDICADOR"]
[null,null,"CLASIFICACIÓN DE LA MEDICIÓN",null,1,null,null,"TIPO DE INDICADOR",null,"Acreditación",null,"META ANUAL",null,1]
[null,null,"FORMULA",null,"NUMERADOR",null,"Elementos educativos adquiridos para la academia*100",null,null,null,null,"UNIDAD DE MEDIDA",null,"Porcentual"]
[null,null,null,null,"DENOMINADOR",null," Total de elementos educativos priorizados requeridos por la academia (solicitudes vigencia anterior)"]
[null,null,"TENDENCIA",null,"Positiva",null,null,"NIVEL DE SEGREGACIÓN *",null,"Por Unidad Regional",null,"ESCALA"]
[null,null,null,null,null,null,null,null,null,null,null,"Deficiente","Aceptable","Bueno","Excelente"]
[null,null,null,null,null,null,null,null,null,null,null,"0 - 60%","61% - 80%","80,1% - 100%","N/A"]
[null,null,"ORIGEN DE DATOS NUMERADOR",null,"Aplicativo Apoyo Académico",null,null,"FRECUENCIA DE LA MEDICIÓN",null,"SEMESTRAL",null,"FRECUENCIA DE RESULTADO",null,"ANUAL"]
[null,null,"ORIGEN DE DATOS DENOMINADOR",null,"Aplicativo Apoyo Académico"]
[]
[null,null,"RESULTADOS"]
[null,null,null,null,null,null,null,null,null,"ANÁLISIS DE DATOS"]
[null,null,null,null,null,null,null,null,null,"En el marco del IIPA2023, la Unidad de Apoyo Académico, en colaboración con las Direcciones Administrativas de las Unidades Regionales de la Universidad de Cundinamarca, llevó a cabo la adquisición de 781 elementos e insumos de laboratorio. Este proceso se materializó a través de la ejecución de 33 procedimientos contractuales, cuyo propósito fue equipar los espacios académicos con elementos destinados a mejorar las experiencias de formación y aprendizaje de los estudiantes durante las prácticas de los estudiantes de los diversos programas académicos.\n\nEn el transcurso del año 2023, se alcanzó la meta de adquirir un total de1.413 elementos, logrando así un 97% de eficiencia en el indicador durante la presente vigencia. Este logro representa un avance significativo en la dotación de recursos para los espacios académicos, contribuyendo a optimizar las condiciones para las prácticas educativas de los estudiantes"]
[]
[]
[]
[]
[]
[null,null,null,null,null,null,null,null,null,"  "]
[null,null,null,null,null,null,null,null,null,"La Unidad de Apoyo Académico, en colaboración con sus gestores y los directores administrativos, lleva a cabo la verificación y aval de las solicitudes de elementos e insumos realizadas por coordinadores y docentes. Este proceso tiene como objetivo proyectar las necesidades de los espacios académicos, asegurando la disponibilidad de dichos elementos e insumos a lo largo de todo el periodo académico. De esta manera, se busca garantizar la eficiencia en el servicio proporcionado por la Unidad de Apoyo Académico en toda la Universidad de Cundinamarca."]
[]
[]
[]
[]
[]
[null,null,null,null,null,null,null,null,null,"RESPONSABLE "]
[null,null,null,null,null,null,null,null,null,{"$f":"E14","v":"Jefe de la Unidad de Apoyo Académico"}]
[]
[]
[null,null,"PERIODO DE EVALUACIÓN"]
[null,null,"MES",{"$f":"IF(J23=\"MENSUAL\",\"ENERO\",IF(J23=\"TRIMESTRAL\",\"MARZO\",IF(J23=\"SEMESTRAL\",\"JUNIO\",IF(J23=\"ANUAL\",YEAR(TODAY()),\"\"))))","v":"JUNIO"},{"$f":"IF(J23=\"MENSUAL\",\"FEBRERO\",IF(J23=\"TRIMESTRAL\",\"JUNIO\",IF(J23=\"SEMESTRAL\",\"DICIEMBRE\",\"\")))","v":"DICIEMBRE"},{"$f":"IF(J23=\"MENSUAL\",\"MARZO\",IF(J23=\"TRIMESTRAL\",\"SEPTIEMBRE\",\"\"))","v":""},{"$f":"IF(J23=\"MENSUAL\",\"ABRIL\",IF(J23=\"TRIMESTRAL\",\"DICIEMBRE\",\"\"))","v":""},{"$f":"IF(J23=\"MENSUAL\",\"MAYO\",\"\")","v":""},{"$f":"IF(J23=\"MENSUAL\",\"JUNIO\",\"\")","v":""},{"$f":"IF(J23=\"MENSUAL\",\"JULIO\",\"\")","v":""},{"$f":"IF(J23=\"MENSUAL\",\"AGOSTO\",\"\")","v":""},{"$f":"IF(J23=\"MENSUAL\",\"SEPTIEMBRE\",\"\")","v":""},{"$f":"IF(J23=\"MENSUAL\",\"OCTUBRE\",\"\")","v":""},{"$f":"IF(J23=\"MENSUAL\",\"NOVIEMBRE\",\"\")","v":""},{"$f":"IF(J23=\"MENSUAL\",\"DICIEMBRE\",\"\")","v":""}]
[null,null,{"$f":"G18","v":"Elementos educativos adquiridos para la academia*100"},603,1384]
[null,null,{"$f":"G19","v":" Total de elementos educativos priorizados requeridos por la academia (solicitudes vigencia anterior)"},1430,1430]
[null,null,"VALOR ",{"$f":"IFERROR(IF($E$17=1,D47/D48,IF($E$17=2,D47,\"\")),\"\")","v":0.4216783216783217},0.96783216783216786,"","","","","","","","","",""]
[null,null,"META PONDERADA",{"$f":"IF(AND(N23=\"ANUAL\",J23=\"MENSUAL\"),N17/12,IF(AND(N23=\"ANUAL\",J23=\"TRIMESTRAL\"),N17/4,IF(AND(N23=\"ANUAL\",J23=\"SEMESTRAL\"),N17/2,IF(AND(N23=\"ANUAL\",J23=\"ANUAL\"),N17,IF(AND(N23=\"SEMESTRAL\",J23=\"MENSUAL\"),N17/6,IF(AND(N23=\"SEMESTRAL\",J23=\"TRIMESTRAL\"),N17/2,IF(AND(N23=\"SEMESTRAL\",J23=\"SEMESTRAL\"),N17,IF(AND(N23=\"SEMESTRAL\",J23=\"ANUAL\"),\"REVISAR FRECUENCIAS\",IF(AND(N23=\"TRIMESTRAL\",J23=\"MENSUAL\"),N17/3,IF(AND(N23=\"TRIMESTRAL\",J23=\"TRIMESTRAL\"),N17,IF(AND(N23=\"TRIMESTRAL\",J23=\"SEMESTRAL\"),\"REVISAR FRECUENCIAS\",IF(AND(N23=\"TRIMESTRAL\",J23=\"ANUAL\"),\"REVISAR FRECUENCIAS\",IF(AND(N23=\"MENSUAL\",J23=\"MENSUAL\"),N17,IF(AND(N23=\"MENSUAL\",J23=\"TRIMESTRAL\"),\"REVISAR FRECUENCIAS\",IF(AND(N23=\"MENSUAL\",J23=\"SEMESTRAL\"),\"REVISAR FRECUENCIAS\",IF(AND(N23=\"MENSUAL\",J23=\"ANUAL\"),\"REVISAR FRECUENCIAS\",\"\"))))))))))))))))","v":0.5},{"$f":"IF(AND(N23=\"ANUAL\",J23=\"MENSUAL\"),N17/12+D50,IF(AND(N23=\"ANUAL\",J23=\"TRIMESTRAL\"),N17/4+D50,IF(AND(N23=\"ANUAL\",J23=\"SEMESTRAL\"),N17/2+D50,IF(AND(N23=\"SEMESTRAL\",J23=\"MENSUAL\"),N17/6+D50,IF(AND(N23=\"SEMESTRAL\",J23=\"TRIMESTRAL\"),N17/2+D50,IF(AND(N23=\"SEMESTRAL\",J23=\"SEMESTRAL\"),N17,IF(AND(N23=\"TRIMESTRAL\",J23=\"MENSUAL\"),N17/3+D50,IF(AND(N23=\"TRIMESTRAL\",J23=\"TRIMESTRAL\"),N17,IF(AND(N23=\"MENSUAL\",J23=\"MENSUAL\"),N17,\"\")))))))))","v":1},{"$f":"IF(AND(N23=\"ANUAL\",J23=\"MENSUAL\"),N17/12+E50,IF(AND(N23=\"ANUAL\",J23=\"TRIMESTRAL\"),N17/4+E50,IF(AND(N23=\"SEMESTRAL\",J23=\"MENSUAL\"),N17/6+E50,IF(AND(N23=\"SEMESTRAL\",J23=\"TRIMESTRAL\"),N17/2,IF(AND(N23=\"TRIMESTRAL\",J23=\"MENSUAL\"),N17/3+E50,IF(AND(N23=\"TRIMESTRAL\",J23=\"TRIMESTRAL\"),N17,IF(AND(N23=\"MENSUAL\",J23=\"MENSUAL\"),N17,\"\")))))))","v":""},{"$f":"IF(AND(N23=\"ANUAL\",J23=\"MENSUAL\"),N17/12+F50,IF(AND(N23=\"ANUAL\",J23=\"TRIMESTRAL\"),N17/4+F50,IF(AND(N23=\"SEMESTRAL\",J23=\"MENSUAL\"),N17/6+F50,IF(AND(N23=\"SEMESTRAL\",J23=\"TRIMESTRAL\"),N17/2+F50,IF(AND(N23=\"TRIMESTRAL\",J23=\"MENSUAL\"),N17/3,IF(AND(N23=\"TRIMESTRAL\",J23=\"TRIMESTRAL\"),N17,IF(AND(N23=\"MENSUAL\",J23=\"MENSUAL\"),N17,\"\")))))))","v":""},{"$f":"IF(AND($N$23=\"ANUAL\",$J$23=\"MENSUAL\"),$N$17/12+G50,IF(AND(N23=\"SEMESTRAL\",J23=\"MENSUAL\"),N17/6+G50,IF(AND(N23=\"TRIMESTRAL\",J23=\"MENSUAL\"),N17/3+G50,IF(AND(N23=\"MENSUAL\",J23=\"MENSUAL\"),N17,\"\"))))","v":""},{"$f":"IF(AND($N$23=\"ANUAL\",$J$23=\"MENSUAL\"),$N$17/12+H50,IF(AND(N23=\"SEMESTRAL\",J23=\"MENSUAL\"),N17/6+H50,IF(AND(N23=\"TRIMESTRAL\",J23=\"MENSUAL\"),N17/3+H50,IF(AND(N23=\"MENSUAL\",J23=\"MENSUAL\"),N17,\"\"))))","v":""},{"$f":"IF(AND($N$23=\"ANUAL\",$J$23=\"MENSUAL\"),$N$17/12+I50,IF(AND(N23=\"SEMESTRAL\",J23=\"MENSUAL\"),N17/6,IF(AND(N23=\"TRIMESTRAL\",J23=\"MENSUAL\"),N17/3,IF(AND(N23=\"MENSUAL\",J23=\"MENSUAL\"),N17,\"\"))))","v":""},{"$f":"IF(AND($N$23=\"ANUAL\",$J$23=\"MENSUAL\"),$N$17/12+J50,IF(AND(N23=\"SEMESTRAL\",J23=\"MENSUAL\"),N17/6+J50,IF(AND(N23=\"TRIMESTRAL\",J23=\"MENSUAL\"),N17/3+J50,IF(AND(N23=\"MENSUAL\",J23=\"MENSUAL\"),N17,\"\"))))","v":""},{"$f":"IF(AND($N$23=\"ANUAL\",$J$23=\"MENSUAL\"),$N$17/12+K50,IF(AND(N23=\"SEMESTRAL\",J23=\"MENSUAL\"),N17/6+K50,IF(AND(N23=\"TRIMESTRAL\",J23=\"MENSUAL\"),N17/3+K50,IF(AND(N23=\"MENSUAL\",J23=\"MENSUAL\"),N17,\"\"))))","v":""},{"$f":"IF(AND($N$23=\"ANUAL\",$J$23=\"MENSUAL\"),$N$17/12+L50,IF(AND(N23=\"SEMESTRAL\",J23=\"MENSUAL\"),N17/6+L50,IF(AND(N23=\"TRIMESTRAL\",J23=\"MENSUAL\"),N17/3,IF(AND(N23=\"MENSUAL\",J23=\"MENSUAL\"),N17,\"\"))))","v":""},{"$f":"IF(AND($N$23=\"ANUAL\",$J$23=\"MENSUAL\"),$N$17/12+M50,IF(AND(N23=\"SEMESTRAL\",J23=\"MENSUAL\"),N17/6+M50,IF(AND(N23=\"TRIMESTRAL\",J23=\"MENSUAL\"),N17/3+M50,IF(AND(N23=\"MENSUAL\",J23=\"MENSUAL\"),N17,\"\"))))","v":""},{"$f":"IF(AND($N$23=\"ANUAL\",$J$23=\"MENSUAL\"),$N$17/12+N50,IF(AND(N23=\"SEMESTRAL\",J23=\"MENSUAL\"),N17/6+N50,IF(AND(N23=\"TRIMESTRAL\",J23=\"MENSUAL\"),N17/3+N50,IF(AND(N23=\"MENSUAL\",J23=\"MENSUAL\"),N17,\"\"))))","v":""}]
[]
[null,null,"NIVEL DE SEGREGACIÓN *"]
[null,null,"UNIDAD SEGREGADA (Ej. Facultad, Programa Académico, Área)",null,null,null,"RESULTADO",null,null,null,"ANALISIS DE DATOS SEGREGADO"]
[null,null,"CHÍA",null,null,null,4.9000000000000002E-2,null,null,null,"Durante la vigencia IIPA2023 se realizó la adquisición de 31 elementos destinados para l funcionamiento de los espacios académicos de la Unidad Regional "]
[null,null,"FACATATIVÁ",null,null,null,7.0000000000000007E-2,null,null,null,"Durante la vigencia IIPA2023 se realizó la adquisición de 55 elementos destinados para l funcionamiento de los espacios académicos de la Unidad Regional "]
[null,null,"FUSAGASUGÁ",null,null,null,0.36599999999999999,null,null,null,"Durante la vigencia IIPA2023 se realizó la adquisición de 286 elementos destinados para l funcionamiento de los espacios académicos de la Unidad Regional "]
[null,null,"GIRARDOT",null,null,null,0.222,null,null,null,"Durante la vigencia IIPA2023 se realizó la adquisición de 173 elementos destinados para l funcionamiento de los espacios académicos de la Unidad Regional "]
[null,null,"SOACHA",null,null,null,1.7999999999999999E-2,null,null,null,"Durante la vigencia IIPA2023 se realizó la adquisición de 14 elementos destinados para l funcionamiento de los espacios académicos de la Unidad Regional "]
[null,null,"UBATE",null,null,null,0.27500000000000002,null,null,null,"Durante la vigencia IIPA2023 se realizó la adquisición de 215 elementos destinados para l funcionamiento de los espacios académicos de la Unidad Regional "]
[null,null,"ZIPAQUIRA",null,null,null,0,null,null,null,"la Unidad regional no realizó el reporte de la información solicitando para el IIPA2023"]
[]
[]
[]
[]
[]
[]
[]
[]
[]
[null,null,null,null,null,null,"Estratégico",null,null,"Eficacia"]
[null,null,null,null,null,null,"Misional",null,null,"Eficiencia"]
[null,null,null,null,null,null,"Apoyo",null,null,"Acreditación"]
[null,null,null,null,null,null,"Seguimiento, Medición, Análisis y Evaluación",null,null,"Positiva"]
[null,null,null,null,null,null,"Direccionamiento Estratégico",null,null,"Negativa"]
[null,null,null,null,null,null,"Planeación Institucional",null,null,"Por Unidad Regional"]
[null,null,null,null,null,null,"Proyectos Especiales y Relaciones Interinstitucionales",null,null,"Por Facultad"]
[null,null,null,null,null,null,"Sistemas Integrados",null,null,"Por Programa Académico"]
[null,null,null,null,null,null,"Autoevaluación y Acreditación",null,null,"Por área"]
[null,null,null,null,null,null,"Comunicaciones",null,null,"Por Laboratorio"]
[null,null,null,null,null,null,"Formación y Aprendizaje",null,null,"Otros"]
[null,null,null,null,null,null,"Ciencia, Tecnología e Innovación",null,null,"No Aplica"]
[null,null,null,null,null,null,"Interacción Social Universitaria"]
[null,null,null,null,null,null,"Bienestar Universitario"]
[null,null,null,null,null,null,"Admisiones y Registro"]
[null,null,null,null,null,null,"Graduados"]
[null,null,null,null,null,null,"Dialogando con el Mundo"]
[null,null,null,null,null,null,"Talento Humano"]
[null,null,null,null,null,null,"Jurídica"]
[null,null,null,null,null,null,"Financiera"]
[null,null,null,null,null,null,"Sistemas y Tecnología"]
[null,null,null,null,null,null,"Bienes y Servicios"]
[null,null,null,null,null,null,"Documental"]
[null,null,null,null,null,null,"Apoyo Académico"]
[null,null,null,null,null,null,"Control Interno"]
[null,null,null,null,null,null,"Control Disciplinario"]
[null,null,null,null,null,null,"Servicio de Atención al Ciudadano"]

{"sheet":"AAA-11","index":5,"n_rows":91,"n_cols":15,"rows_kept":91,"cut":false,"hidden":false,"merged":[[53,2,53,5],[53,6,53,9],[53,10,53,14],[54,2,54,5],[54,6,54,9],[54,10,54,14],[51,2,51,5],[51,6,51,9],[51,10,51,14],[52,2,52,5],[52,6,52,9],[52,10,52,14],[49,2,49,5],[49,6,49,9],[49,10,49,14],[50,2,50,5],[50,6,50,9],[50,10,50,14],[48,2,48,5],[48,6,48,9],[48,10,48,14],[26,15,27,15],[27,9,27,14],[28,9,28,14],[29,9,34,14],[35,9,35,14],[36,9,36,14],[39,2,39,14],[46,2,46,14],[47,2,47,5],[47,6,47,9],[47,10,47,14],[22,13,23,14],[23,2,23,3],[23,4,23,6],[25,2,25,14],[26,2,37,8],[26,9,26,14],[37,9,37,14],[22,2,22,3],[22,4,22,6],[22,7,23,8],[22,9,23,10],[22,11,23,12],[19,2,21,3],[19,4,21,6],[19,7,21,8],[19,9,21,10],[19,11,19,14],[16,15,17,15],[17,2,18,3],[17,4,17,5],[17,6,17,10],[17,11,18,12],[17,13,18,14],[18,4,18,5],[18,6,18,10],[16,2,16,3],[16,4,16,6],[16,7,16,8],[16,9,16,10],[16,11,16,12],[16,13,16,14],[15,2,15,14],[8,2,8,14],[9,2,10,14],[11,2,11,3],[11,4,11,7],[11,8,11,9],[11,10,11,14],[12,2,12,3],[12,4,12,14],[13,2,13,3],[13,4,13,14],[14,2,14,14],[1,1,3,2],[4,2,7,3],[4,4,4,11],[4,12,4,14],[5,4,5,11],[5,12,5,14],[6,4,7,11],[6,12,6,14],[7,12,7,14]]}
[]
[null,"      REGRESAR"]
[]
[]
[null,null,null,null,"MACROPROCESO ESTRATÉGICO",null,null,null,null,null,null,null,"CÓDIGO: ESGr027"]
[null,null,null,null,"PROCESO GESTIÓN SISTEMAS INTEGRADOS",null,null,null,null,null,null,null,"VERSIÓN: 8"]
[null,null,null,null,"MATRIZ DE MEDICIÓN Y SEGUIMIENTO A LOS PROCESOS DE GESTIÓN",null,null,null,null,null,null,null,"VIGENCIA: 2023-07-28"]
[null,null,null,null,null,null,null,null,null,null,null,null,"PÁGINA: 6 de 8"]
[]
[null,null,"FICHA DE INDICADOR"]
[]
[null,null,"MACROPROCESO",null,"Apoyo",null,null,null,"NOMBRE DEL INDICADOR",null,"Recursos de apoyo - Usabilidad de laboratorios"]
[null,null,"PROCESO GESTIÓN",null,"Apoyo Académico"]
[null,null,"RESPONSABLE DE MEDICIÓN",null,"Jefe de la Unidad de Apoyo Académico"]
[]
[null,null,"1. COMPORTAMIENTO DE INDICADOR"]
[null,null,"CLASIFICACIÓN DE LA MEDICIÓN",null,3,null,null,"TIPO DE INDICADOR",null,"Acreditación",null,"META ANUAL",null,2]
[null,null,"FORMULA",null,"NUMERADOR",null,"Número de visitas a los laboratorios * 100",null,null,null,null,"UNIDAD DE MEDIDA",null,"N° de visitas a los laboratorios por estudiantes activos"]
[null,null,null,null,"DENOMINADOR",null,"Total de estudiantes activos para el uso del laboratorio "]
[null,null,"TENDENCIA",null,"Positiva",null,null,"NIVEL DE SEGREGACIÓN *",null,"Por Programa Académico",null,"ESCALA"]
[null,null,null,null,null,null,null,null,null,null,null,"Deficiente","Aceptable","Bueno","Excelente"]
[null,null,null,null,null,null,null,null,null,null,null,"0 - 0,9","1 - 1,4","1,5 - 2","≥ 2,1"]
[null,null,"ORIGEN DE DATOS NUMERADOR",null,"Aplicativo",null,null,"FRECUENCIA DE LA MEDICIÓN",null,"SEMESTRAL",null,"FRECUENCIA DE RESULTADO",null,"SEMESTRAL"]
[null,null,"ORIGEN DE DATOS DENOMINADOR",null,"Aplicativo"]
[]
[null,null,"RESULTADOS"]
[null,null,null,null,null,null,null,null,null,"ANÁLISIS DE DATOS"]
[null,null,null,null,null,null,null,null,null,"En el marco del IIPA 2023, se registró un total de 165,224 asistencias a los diferentes espacios académicos de la Universidad de Cundinamarca. Durante esta vigencia, cada uno de los 12,289 estudiantes asistió en promedio a estos espacios en 13 ocasiones. Cabe destacar que este número se deriva de la necesidad de que cada estudiante realice un registro de asistencia cada vez que ingresa a un espacio académico correspondiente."]
[null,null,null,null,null,null,null,null,null,"ACCIÓN FORMULADA"]
[null,null,null,null,null,null,null,null,null,"Considerando que este indicador fue transferido a la Unidad de Apoyo Académico en el año 2023, se solicita su revisión y actualización del mismo en colaboración con la Oficina de Calidad. El propósito de esta solicitud es obtener datos más precisos y alineados con el contexto actual de la Universidad de Cundinamarca."]
[]
[]
[]
[]
[]
[null,null,null,null,null,null,null,null,null,"RESPONSABLE "]
[null,null,null,null,null,null,null,null,null,{"$f":"E14","v":"Jefe de la Unidad de Apoyo Académico"}]
[]
[]
[null,null,"PERIODO DE EVALUACIÓN"]
[null,null,"MES",{"$f":"IF(J23=\"MENSUAL\",\"ENERO\",IF(J23=\"TRIMESTRAL\",\"MARZO\",IF(J23=\"SEMESTRAL\",\"JUNIO\",IF(J23=\"ANUAL\",YEAR(TODAY()),\"\"))))","v":"JUNIO"},{"$f":"IF(J23=\"MENSUAL\",\"FEBRERO\",IF(J23=\"TRIMESTRAL\",\"JUNIO\",IF(J23=\"SEMESTRAL\",\"DICIEMBRE\",\"\")))","v":"DICIEMBRE"},{"$f":"IF(J23=\"MENSUAL\",\"MARZO\",IF(J23=\"TRIMESTRAL\",\"SEPTIEMBRE\",\"\"))","v":""},{"$f":"IF(J23=\"MENSUAL\",\"ABRIL\",IF(J23=\"TRIMESTRAL\",\"DICIEMBRE\",\"\"))","v":""},{"$f":"IF(J23=\"MENSUAL\",\"MAYO\",\"\")","v":""},{"$f":"IF(J23=\"MENSUAL\",\"JUNIO\",\"\")","v":""},{"$f":"IF(J23=\"MENSUAL\",\"JULIO\",\"\")","v":""},{"$f":"IF(J23=\"MENSUAL\",\"AGOSTO\",\"\")","v":""},{"$f":"IF(J23=\"MENSUAL\",\"SEPTIEMBRE\",\"\")","v":""},{"$f":"IF(J23=\"MENSUAL\",\"OCTUBRE\",\"\")","v":""},{"$f":"IF(J23=\"MENSUAL\",\"NOVIEMBRE\",\"\")","v":""},{"$f":"IF(J23=\"MENSUAL\",\"DICIEMBRE\",\"\")","v":""}]
[null,null,{"$f":"G18","v":"Número de visitas a los laboratorios * 100"},206359,165224]
[null,null,{"$f":"G19","v":"Total de estudiantes activos para el uso del laboratorio "},12289,12154]
[null,null,"VALOR ",{"$f":"IFERROR(IF($E$17=1,D42/D43,IF($E$17=2,D42,IF($E$17=3,D42/D43,\"\"))),\"\")","v":16.792171861013916},{"$f":"IFERROR(IF($E$17=1,E42/E43,IF($E$17=2,E42,IF($E$17=3,E42/E43,\"\"))),\"\")","v":13.594207668257363},null,{"$f":"IFERROR(IF($E$17=1,G42/G43,IF($E$17=2,G42,\"\")),\"\")","v":""},"","","","","","","",""]
[null,null,"META PONDERADA",{"$f":"IF(AND(N23=\"ANUAL\",J23=\"MENSUAL\"),N17/12,IF(AND(N23=\"ANUAL\",J23=\"TRIMESTRAL\"),N17/4,IF(AND(N23=\"ANUAL\",J23=\"SEMESTRAL\"),N17/2,IF(AND(N23=\"ANUAL\",J23=\"ANUAL\"),N17,IF(AND(N23=\"SEMESTRAL\",J23=\"MENSUAL\"),N17/6,IF(AND(N23=\"SEMESTRAL\",J23=\"TRIMESTRAL\"),N17/2,IF(AND(N23=\"SEMESTRAL\",J23=\"SEMESTRAL\"),N17,IF(AND(N23=\"SEMESTRAL\",J23=\"ANUAL\"),\"REVISAR FRECUENCIAS\",IF(AND(N23=\"TRIMESTRAL\",J23=\"MENSUAL\"),N17/3,IF(AND(N23=\"TRIMESTRAL\",J23=\"TRIMESTRAL\"),N17,IF(AND(N23=\"TRIMESTRAL\",J23=\"SEMESTRAL\"),\"REVISAR FRECUENCIAS\",IF(AND(N23=\"TRIMESTRAL\",J23=\"ANUAL\"),\"REVISAR FRECUENCIAS\",IF(AND(N23=\"MENSUAL\",J23=\"MENSUAL\"),N17,IF(AND(N23=\"MENSUAL\",J23=\"TRIMESTRAL\"),\"REVISAR FRECUENCIAS\",IF(AND(N23=\"MENSUAL\",J23=\"SEMESTRAL\"),\"REVISAR FRECUENCIAS\",IF(AND(N23=\"MENSUAL\",J23=\"ANUAL\"),\"REVISAR FRECUENCIAS\",\"\"))))))))))))))))","v":2},{"$f":"IF(AND(N23=\"ANUAL\",J23=\"MENSUAL\"),N17/12+D45,IF(AND(N23=\"ANUAL\",J23=\"TRIMESTRAL\"),N17/4+D45,IF(AND(N23=\"ANUAL\",J23=\"SEMESTRAL\"),N17/2+D45,IF(AND(N23=\"SEMESTRAL\",J23=\"MENSUAL\"),N17/6+D45,IF(AND(N23=\"SEMESTRAL\",J23=\"TRIMESTRAL\"),N17/2+D45,IF(AND(N23=\"SEMESTRAL\",J23=\"SEMESTRAL\"),N17,IF(AND(N23=\"TRIMESTRAL\",J23=\"MENSUAL\"),N17/3+D45,IF(AND(N23=\"TRIMESTRAL\",J23=\"TRIMESTRAL\"),N17,IF(AND(N23=\"MENSUAL\",J23=\"MENSUAL\"),N17,\"\")))))))))","v":2},{"$f":"IF(AND(N23=\"ANUAL\",J23=\"MENSUAL\"),N17/12+E45,IF(AND(N23=\"ANUAL\",J23=\"TRIMESTRAL\"),N17/4+E45,IF(AND(N23=\"SEMESTRAL\",J23=\"MENSUAL\"),N17/6+E45,IF(AND(N23=\"SEMESTRAL\",J23=\"TRIMESTRAL\"),N17/2,IF(AND(N23=\"TRIMESTRAL\",J23=\"MENSUAL\"),N17/3+E45,IF(AND(N23=\"TRIMESTRAL\",J23=\"TRIMESTRAL\"),N17,IF(AND(N23=\"MENSUAL\",J23=\"MENSUAL\"),N17,\"\")))))))","v":""},{"$f":"IF(AND(N23=\"ANUAL\",J23=\"MENSUAL\"),N17/12+F45,IF(AND(N23=\"ANUAL\",J23=\"TRIMESTRAL\"),N17/4+F45,IF(AND(N23=\"SEMESTRAL\",J23=\"MENSUAL\"),N17/6+F45,IF(AND(N23=\"SEMESTRAL\",J23=\"TRIMESTRAL\"),N17/2+F45,IF(AND(N23=\"TRIMESTRAL\",J23=\"MENSUAL\"),N17/3,IF(AND(N23=\"TRIMESTRAL\",J23=\"TRIMESTRAL\"),N17,IF(AND(N23=\"MENSUAL\",J23=\"MENSUAL\"),N17,\"\")))))))","v":""},{"$f":"IF(AND($N$23=\"ANUAL\",$J$23=\"MENSUAL\"),$N$17/12+G45,IF(AND(N23=\"SEMESTRAL\",J23=\"MENSUAL\"),N17/6+G45,IF(AND(N23=\"TRIMESTRAL\",J23=\"MENSUAL\"),N17/3+G45,IF(AND(N23=\"MENSUAL\",J23=\"MENSUAL\"),N17,\"\"))))","v":""},{"$f":"IF(AND($N$23=\"ANUAL\",$J$23=\"MENSUAL\"),$N$17/12+H45,IF(AND(N23=\"SEMESTRAL\",J23=\"MENSUAL\"),N17/6+H45,IF(AND(N23=\"TRIMESTRAL\",J23=\"MENSUAL\"),N17/3+H45,IF(AND(N23=\"MENSUAL\",J23=\"MENSUAL\"),N17,\"\"))))","v":""},{"$f":"IF(AND($N$23=\"ANUAL\",$J$23=\"MENSUAL\"),$N$17/12+I45,IF(AND(N23=\"SEMESTRAL\",J23=\"MENSUAL\"),N17/6,IF(AND(N23=\"TRIMESTRAL\",J23=\"MENSUAL\"),N17/3,IF(AND(N23=\"MENSUAL\",J23=\"MENSUAL\"),N17,\"\"))))","v":""},{"$f":"IF(AND($N$23=\"ANUAL\",$J$23=\"MENSUAL\"),$N$17/12+J45,IF(AND(N23=\"SEMESTRAL\",J23=\"MENSUAL\"),N17/6+J45,IF(AND(N23=\"TRIMESTRAL\",J23=\"MENSUAL\"),N17/3+J45,IF(AND(N23=\"MENSUAL\",J23=\"MENSUAL\"),N17,\"\"))))","v":""},{"$f":"IF(AND($N$23=\"ANUAL\",$J$23=\"MENSUAL\"),$N$17/12+K45,IF(AND(N23=\"SEMESTRAL\",J23=\"MENSUAL\"),N17/6+K45,IF(AND(N23=\"TRIMESTRAL\",J23=\"MENSUAL\"),N17/3+K45,IF(AND(N23=\"MENSUAL\",J23=\"MENSUAL\"),N17,\"\"))))","v":""},{"$f":"IF(AND($N$23=\"ANUAL\",$J$23=\"MENSUAL\"),$N$17/12+L45,IF(AND(N23=\"SEMESTRAL\",J23=\"MENSUAL\"),N17/6+L45,IF(AND(N23=\"TRIMESTRAL\",J23=\"MENSUAL\"),N17/3,IF(AND(N23=\"MENSUAL\",J23=\"MENSUAL\"),N17,\"\"))))","v":""},{"$f":"IF(AND($N$23=\"ANUAL\",$J$23=\"MENSUAL\"),$N$17/12+M45,IF(AND(N23=\"SEMESTRAL\",J23=\"MENSUAL\"),N17/6+M45,IF(AND(N23=\"TRIMESTRAL\",J23=\"MENSUAL\"),N17/3+M45,IF(AND(N23=\"MENSUAL\",J23=\"MENSUAL\"),N17,\"\"))))","v":""},{"$f":"IF(AND($N$23=\"ANUAL\",$J$23=\"MENSUAL\"),$N$17/12+N45,IF(AND(N23=\"SEMESTRAL\",J23=\"MENSUAL\"),N17/6+N45,IF(AND(N23=\"TRIMESTRAL\",J23=\"MENSUAL\"),N17/3+N45,IF(AND(N23=\"MENSUAL\",J23=\"MENSUAL\"),N17,\"\"))))","v":""}]
[]
[null,null,"NIVEL DE SEGREGACIÓN *"]
[null,null,"UNIDAD SEGREGADA (Ej. Facultad, Programa Académico, Área)",null,null,null,"RESULTADO",null,null,null,"ANALISIS DE DATOS SEGREGADO"]
[null,null,"Chía",null,null,null,0.06,null,null,null,"Se registraron unas asistencias de 9,802 usuarios en los espacios académicos de la Extensión Chía - Universidad de Cundinamarca"]
[null,null,"Facatativá",null,null,null,0.18,null,null,null,"Se registraron unas asistencias de 31.128  usuarios en los espacios académicos de la Extensión Facatativá - Universidad de Cundinamarca"]
[null,null,"Soacha",null,null,null,0.16,null,null,null," Se registraron unas asistencias de 26.549  usuarios en los espacios académicos de la Extensión Soacha - Universidad de Cundinamarca"]
[null,null,"Girardot",null,null,null,0.09,null,null,null,"Se registraron unas asistencias de 14.217    usuarios en los espacios académicos de la Seccional Girardot - Universidad de Cundinamarca"]
[null,null,"Ubaté",null,null,null,0.06,null,null,null," Se registraron unas asistencias de 9.375 usuarios en los espacios académicos de la Seccional Ubaté - Universidad de Cundinamarca"]
[null,null,"Fusagasugá",null,null,null,0.42,null,null,null,"Se registraron unas asistencias de 69.636  usuarios en los espacios académicos de la Sede Fusagasugá - Universidad de Cundinamarca"]
[null,null,"Zipaquirá",null,null,null,0.03,null,null,null,"Se registraron unas asistencias de 4,517   usuarios en los espacios académicos de la Extensión Zipaquirá - Universidad de Cundinamarca"]
[]
[]
[]
[]
[]
[]
[]
[]
[]
[null,null,null,null,null,null,"Estratégico",null,null,"Eficacia"]
[null,null,null,null,null,null,"Misional",null,null,"Eficiencia"]
[null,null,null,null,null,null,"Apoyo",null,null,"Acreditación"]
[null,null,null,null,null,null,"Seguimiento, Medición, Análisis y Evaluación",null,null,"Positiva"]
[null,null,null,null,null,null,"Direccionamiento Estratégico",null,null,"Negativa"]
[null,null,null,null,null,null,"Planeación Institucional",null,null,"Por Unidad Regional"]
[null,null,null,null,null,null,"Proyectos Especiales y Relaciones Interinstitucionales",null,null,"Por Facultad"]
[null,null,null,null,null,null,"Sistemas Integrados",null,null,"Por Programa Académico"]
[null,null,null,null,null,null,"Autoevaluación y Acreditación",null,null,"Por área"]
[null,null,null,null,null,null,"Comunicaciones",null,null,"Por Laboratorio"]
[null,null,null,null,null,null,"Formación y Aprendizaje",null,null,"Otros"]
[null,null,null,null,null,null,"Ciencia, Tecnología e Innovación",null,null,"No Aplica"]
[null,null,null,null,null,null,"Interacción Social Universitaria"]
[null,null,null,null,null,null,"Bienestar Universitario"]
[null,null,null,null,null,null,"Admisiones y Registro"]
[null,null,null,null,null,null,"Graduados"]
[null,null,null,null,null,null,"Dialogando con el Mundo"]
[null,null,null,null,null,null,"Talento Humano"]
[null,null,null,null,null,null,"Jurídica"]
[null,null,null,null,null,null,"Financiera"]
[null,null,null,null,null,null,"Sistemas y Tecnología"]
[null,null,null,null,null,null,"Bienes y Servicios"]
[null,null,null,null,null,null,"Documental"]
[null,null,null,null,null,null,"Apoyo Académico"]
[null,null,null,null,null,null,"Control Interno"]
[null,null,null,null,null,null,"Control Disciplinario"]
[null,null,null,null,null,null,"Servicio de Atención al Ciudadano"]

{"sheet":"AAA-12","index":6,"n_rows":95,"n_cols":15,"rows_kept":95,"cut":false,"hidden":false,"merged":[[1,1,3,2],[4,2,7,3],[4,4,4,11],[4,12,4,14],[5,4,5,11],[5,12,5,14],[6,4,7,11],[6,12,6,14],[7,12,7,14],[8,2,8,14],[9,2,10,14],[11,2,11,3],[11,4,11,7],[11,8,11,9],[11,10,11,14],[16,13,16,14],[12,2,12,3],[12,4,12,14],[13,2,13,3],[13,4,13,14],[14,2,14,14],[15,2,15,14],[22,13,23,14],[16,15,17,15],[17,2,18,3],[17,4,18,10],[17,11,18,12],[17,13,18,14],[19,2,21,3],[19,4,21,6],[19,7,21,8],[19,9,21,10],[19,11,19,14],[16,2,16,3],[16,4,16,6],[16,7,16,8],[16,9,16,10],[16,11,16,12],[22,2,23,3],[22,4,23,6],[22,7,23,8],[22,9,23,10],[22,11,23,12],[26,15,27,15],[27,9,32,14],[33,9,33,14],[34,9,39,14],[40,9,40,14],[52,2,52,5],[52,6,52,9],[52,10,52,14],[25,2,25,14],[26,2,42,8],[26,9,26,14],[41,9,41,14],[42,9,42,14],[44,2,44,14],[50,2,50,14],[51,2,51,5],[51,6,51,9],[51,10,51,14],[53,2,53,5],[53,6,53,9],[53,10,53,14],[54,2,54,5],[54,6,54,9],[54,10,54,14],[55,2,55,5],[55,6,55,9],[55,10,55,14],[56,2,56,5],[56,6,56,9],[56,10,56,14],[57,2,57,5],[57,6,57,9],[57,10,57,14],[58,2,58,5],[58,6,58,9],[58,10,58,14]]}
[]
[null,"      REGRESAR"]
[]
[]
[null,null,null,null,"MACROPROCESO ESTRATÉGICO",null,null,null,null,null,null,null,"CÓDIGO: ESGr027"]
[null,null,null,null,"PROCESO GESTIÓN SISTEMAS INTEGRADOS",null,null,null,null,null,null,null,"VERSIÓN: 8"]
[null,null,null,null,"MATRIZ DE MEDICIÓN Y SEGUIMIENTO A LOS PROCESOS DE GESTIÓN",null,null,null,null,null,null,null,"VIGENCIA: 2023-07-28"]
[null,null,null,null,null,null,null,null,null,null,null,null,"PÁGINA: 7 de 8"]
[]
[null,null,"FICHA DE INDICADOR"]
[]
[null,null,"MACROPROCESO",null,"Apoyo",null,null,null,"NOMBRE DEL INDICADOR",null,"Usabilidad de recursos bibliográficos, (bases de datos, libros impresos y digitales)  "]
[null,null,"PROCESO GESTIÓN",null,"Apoyo Académico"]
[null,null,"RESPONSABLE DE MEDICIÓN",null,"Jefe de la Unidad de Apoyo Académico"]
[]
[null,null,"1. COMPORTAMIENTO DE INDICADOR"]
[null,null,"CLASIFICACIÓN DE LA MEDICIÓN",null,2,null,null,"TIPO DE INDICADOR",null,"Acreditación",null,"META ANUAL",null,70000]
[null,null,"FORMULA",null,"Número de consultas en relación con los recursos bibliográficos de la Ucundinamarca",null,null,null,null,null,null,"UNIDAD DE MEDIDA",null,"Número Absoluto"]
[]
[null,null,"TENDENCIA",null,"Positiva",null,null,"NIVEL DE SEGREGACIÓN *",null,"Por Programa Académico",null,"ESCALA"]
[null,null,null,null,null,null,null,null,null,null,null,"Deficiente","Aceptable","Bueno","Excelente"]
[null,null,null,null,null,null,null,null,null,null,null,"0 - 49999","50000-64999","65000 - 70000"," ≥ 70001"]
[null,null,"ORIGEN DE DATOS",null,"Bibliocifras",null,null,"FRECUENCIA DE LA MEDICIÓN",null,"SEMESTRAL",null,"FRECUENCIA DE RESULTADO",null,"SEMESTRAL"]
[]
[]
[null,null,"RESULTADOS"]
[null,null,null,null,null,null,null,null,null,"ANÁLISIS DE DATOS"]
[null,null,null,null,null,null,null,null,null,"\nEn el IIPA2023, se ha registrado un incremento de más del doble en los resultados relacionados con la usabilidad de los recursos bibliográficos, tanto físicos como electrónicos. Este aumento se atribuye a las estrategias implementadas por el CGCA para fomentar el uso de los recursos bibliográficos disponibles en la Universidad de Cundinamarca entre toda la comunidad educativa. Además, es importante destacar que la Unidad de Apoyo Académico se esfuerza por garantizar un servicio continuo de la biblioteca digital durante todo el año."]
[]
[]
[]
[]
[]
[null,null,null,null,null,null,null,null,null,"ACCIÓN FORMULADA"]
[null,null,null,null,null,null,null,null,null,"Considerando que este indicador fue transferido a la Unidad de Apoyo Académico en el año 2023, se solicita su revisión y actualización del mismo en colaboración con la Oficina de Calidad. El propósito de esta solicitud es obtener datos más precisos y alineados con el contexto actual de la Universidad de Cundinamarca."]
[]
[]
[]
[]
[]
[null,null,null,null,null,null,null,null,null,"RESPONSABLE "]
[null,null,null,null,null,null,null,null,null,{"$f":"E14","v":"Jefe de la Unidad de Apoyo Académico"}]
[]
[]
[null,null,"PERIODO DE EVALUACIÓN"]
[null,null,"MES",{"$f":"IF(J23=\"MENSUAL\",\"ENERO\",IF(J23=\"TRIMESTRAL\",\"MARZO\",IF(J23=\"SEMESTRAL\",\"JUNIO\",IF(J23=\"ANUAL\",YEAR(TODAY()),\"\"))))","v":"JUNIO"},{"$f":"IF(J23=\"MENSUAL\",\"FEBRERO\",IF(J23=\"TRIMESTRAL\",\"JUNIO\",IF(J23=\"SEMESTRAL\",\"DICIEMBRE\",\"\")))","v":"DICIEMBRE"},{"$f":"IF(J23=\"MENSUAL\",\"MARZO\",IF(J23=\"TRIMESTRAL\",\"SEPTIEMBRE\",\"\"))","v":""},{"$f":"IF(J23=\"MENSUAL\",\"ABRIL\",IF(J23=\"TRIMESTRAL\",\"DICIEMBRE\",\"\"))","v":""},{"$f":"IF(J23=\"MENSUAL\",\"MAYO\",\"\")","v":""},{"$f":"IF(J23=\"MENSUAL\",\"JUNIO\",\"\")","v":""},{"$f":"IF(J23=\"MENSUAL\",\"JULIO\",\"\")","v":""},{"$f":"IF(J23=\"MENSUAL\",\"AGOSTO\",\"\")","v":""},{"$f":"IF(J23=\"MENSUAL\",\"SEPTIEMBRE\",\"\")","v":""},{"$f":"IF(J23=\"MENSUAL\",\"OCTUBRE\",\"\")","v":""},{"$f":"IF(J23=\"MENSUAL\",\"NOVIEMBRE\",\"\")","v":""},{"$f":"IF(J23=\"MENSUAL\",\"DICIEMBRE\",\"\")","v":""}]
[null,null,{"$f":"E18","v":"Número de consultas en relación con los recursos bibliográficos de la Ucundinamarca"},79648,161512]
[null,null,"VALOR ",{"$f":"+D47","v":79648},{"$f":"+E47","v":161512},{"$f":"+F47","v":0},{"$f":"+G47","v":0},{"$f":"IFERROR(IF($E$17=1,#REF!/H47,IF($E$17=2,#REF!,\"\")),\"\")","v":""},{"$f":"IFERROR(IF($E$17=1,#REF!/I47,IF($E$17=2,#REF!,\"\")),\"\")","v":""},{"$f":"IFERROR(IF($E$17=1,#REF!/J47,IF($E$17=2,#REF!,\"\")),\"\")","v":""},{"$f":"IFERROR(IF($E$17=1,#REF!/K47,IF($E$17=2,#REF!,\"\")),\"\")","v":""},{"$f":"IFERROR(IF($E$17=1,#REF!/L47,IF($E$17=2,#REF!,\"\")),\"\")","v":""},{"$f":"IFERROR(IF($E$17=1,#REF!/M47,IF($E$17=2,#REF!,\"\")),\"\")","v":""},{"$f":"IFERROR(IF($E$17=1,#REF!/N47,IF($E$17=2,#REF!,\"\")),\"\")","v":""},{"$f":"IFERROR(IF($E$17=1,#REF!/O47,IF($E$17=2,#REF!,\"\")),\"\")","v":""}]
[null,null,"META PONDERADA",{"$f":"IF(AND(N23=\"SEMESTRAL\",J23=\"MENSUAL\"),N17/12,IF(AND(N23=\"ANUAL\",J23=\"TRIMESTRAL\"),N17/4,IF(AND(N23=\"ANUAL\",J23=\"SEMESTRAL\"),N17/2,IF(AND(N23=\"ANUAL\",J23=\"ANUAL\"),N17,IF(AND(N23=\"SEMESTRAL\",J23=\"MENSUAL\"),N17/6,IF(AND(N23=\"SEMESTRAL\",J23=\"TRIMESTRAL\"),N17/2,IF(AND(N23=\"SEMESTRAL\",J23=\"SEMESTRAL\"),N17,IF(AND(N23=\"SEMESTRAL\",J23=\"ANUAL\"),\"REVISAR FRECUENCIAS\",IF(AND(N23=\"TRIMESTRAL\",J23=\"MENSUAL\"),N17/3,IF(AND(N23=\"TRIMESTRAL\",J23=\"TRIMESTRAL\"),N17,IF(AND(N23=\"TRIMESTRAL\",J23=\"SEMESTRAL\"),\"REVISAR FRECUENCIAS\",IF(AND(N23=\"TRIMESTRAL\",J23=\"ANUAL\"),\"REVISAR FRECUENCIAS\",IF(AND(N23=\"MENSUAL\",J23=\"MENSUAL\"),N17,IF(AND(N23=\"MENSUAL\",J23=\"TRIMESTRAL\"),\"REVISAR FRECUENCIAS\",IF(AND(N23=\"MENSUAL\",J23=\"SEMESTRAL\"),\"REVISAR FRECUENCIAS\",IF(AND(N23=\"MENSUAL\",J23=\"ANUAL\"),\"REVISAR FRECUENCIAS\",\"\"))))))))))))))))","v":70000},{"$f":"IF(AND(N23=\"ANUAL\",J23=\"MENSUAL\"),N17/12+D48,IF(AND(N23=\"ANUAL\",J23=\"TRIMESTRAL\"),N17/4+D48,IF(AND(N23=\"ANUAL\",J23=\"SEMESTRAL\"),N17/2+D48,IF(AND(N23=\"SEMESTRAL\",J23=\"MENSUAL\"),N17/6+D48,IF(AND(N23=\"SEMESTRAL\",J23=\"TRIMESTRAL\"),N17/2+D48,IF(AND(N23=\"SEMESTRAL\",J23=\"SEMESTRAL\"),N17,IF(AND(N23=\"TRIMESTRAL\",J23=\"MENSUAL\"),N17/3+D48,IF(AND(N23=\"TRIMESTRAL\",J23=\"TRIMESTRAL\"),N17,IF(AND(N23=\"MENSUAL\",J23=\"MENSUAL\"),N17,\"\")))))))))","v":70000},null,{"$f":"IF(AND(Q24=\"ANUAL\",M24=\"MENSUAL\"),Q18/12,IF(AND(Q24=\"ANUAL\",M24=\"TRIMESTRAL\"),Q18/4,IF(AND(Q24=\"ANUAL\",M24=\"SEMESTRAL\"),Q18/2,IF(AND(Q24=\"ANUAL\",M24=\"ANUAL\"),Q18,IF(AND(Q24=\"SEMESTRAL\",M24=\"MENSUAL\"),Q18/6,IF(AND(Q24=\"SEMESTRAL\",M24=\"TRIMESTRAL\"),Q18/2,IF(AND(Q24=\"SEMESTRAL\",M24=\"SEMESTRAL\"),Q18,IF(AND(Q24=\"SEMESTRAL\",M24=\"ANUAL\"),\"REVISAR FRECUENCIAS\",IF(AND(Q24=\"TRIMESTRAL\",M24=\"MENSUAL\"),Q18/3,IF(AND(Q24=\"TRIMESTRAL\",M24=\"TRIMESTRAL\"),Q18,IF(AND(Q24=\"TRIMESTRAL\",M24=\"SEMESTRAL\"),\"REVISAR FRECUENCIAS\",IF(AND(Q24=\"TRIMESTRAL\",M24=\"ANUAL\"),\"REVISAR FRECUENCIAS\",IF(AND(Q24=\"MENSUAL\",M24=\"MENSUAL\"),Q18,IF(AND(Q24=\"MENSUAL\",M24=\"TRIMESTRAL\"),\"REVISAR FRECUENCIAS\",IF(AND(Q24=\"MENSUAL\",M24=\"SEMESTRAL\"),\"REVISAR FRECUENCIAS\",IF(AND(Q24=\"MENSUAL\",M24=\"ANUAL\"),\"REVISAR FRECUENCIAS\",\"\"))))))))))))))))","v":""},{"$f":"IF(AND($N$23=\"ANUAL\",$J$23=\"MENSUAL\"),$N$17/12+G49,IF(AND(N23=\"SEMESTRAL\",J23=\"MENSUAL\"),N17/6+G49,IF(AND(N23=\"TRIMESTRAL\",J23=\"MENSUAL\"),N17/3+G49,IF(AND(N23=\"MENSUAL\",J23=\"MENSUAL\"),N17,\"\"))))","v":""},{"$f":"IF(AND($N$23=\"ANUAL\",$J$23=\"MENSUAL\"),$N$17/12+H49,IF(AND(N23=\"SEMESTRAL\",J23=\"MENSUAL\"),N17/6+H49,IF(AND(N23=\"TRIMESTRAL\",J23=\"MENSUAL\"),N17/3+H49,IF(AND(N23=\"MENSUAL\",J23=\"MENSUAL\"),N17,\"\"))))","v":""},{"$f":"IF(AND($N$23=\"ANUAL\",$J$23=\"MENSUAL\"),$N$17/12+I49,IF(AND(N23=\"SEMESTRAL\",J23=\"MENSUAL\"),N17/6,IF(AND(N23=\"TRIMESTRAL\",J23=\"MENSUAL\"),N17/3,IF(AND(N23=\"MENSUAL\",J23=\"MENSUAL\"),N17,\"\"))))","v":""},{"$f":"IF(AND($N$23=\"ANUAL\",$J$23=\"MENSUAL\"),$N$17/12+J49,IF(AND(N23=\"SEMESTRAL\",J23=\"MENSUAL\"),N17/6+J49,IF(AND(N23=\"TRIMESTRAL\",J23=\"MENSUAL\"),N17/3+J49,IF(AND(N23=\"MENSUAL\",J23=\"MENSUAL\"),N17,\"\"))))","v":""},{"$f":"IF(AND($N$23=\"ANUAL\",$J$23=\"MENSUAL\"),$N$17/12+K49,IF(AND(N23=\"SEMESTRAL\",J23=\"MENSUAL\"),N17/6+K49,IF(AND(N23=\"TRIMESTRAL\",J23=\"MENSUAL\"),N17/3+K49,IF(AND(N23=\"MENSUAL\",J23=\"MENSUAL\"),N17,\"\"))))","v":""},{"$f":"IF(AND($N$23=\"ANUAL\",$J$23=\"MENSUAL\"),$N$17/12+L49,IF(AND(N23=\"SEMESTRAL\",J23=\"MENSUAL\"),N17/6+L49,IF(AND(N23=\"TRIMESTRAL\",J23=\"MENSUAL\"),N17/3,IF(AND(N23=\"MENSUAL\",J23=\"MENSUAL\"),N17,\"\"))))","v":""},{"$f":"IF(AND($N$23=\"ANUAL\",$J$23=\"MENSUAL\"),$N$17/12+M49,IF(AND(N23=\"SEMESTRAL\",J23=\"MENSUAL\"),N17/6+M49,IF(AND(N23=\"TRIMESTRAL\",J23=\"MENSUAL\"),N17/3+M49,IF(AND(N23=\"MENSUAL\",J23=\"MENSUAL\"),N17,\"\"))))","v":""},{"$f":"IF(AND($N$23=\"ANUAL\",$J$23=\"MENSUAL\"),$N$17/12+N49,IF(AND(N23=\"SEMESTRAL\",J23=\"MENSUAL\"),N17/6+N49,IF(AND(N23=\"TRIMESTRAL\",J23=\"MENSUAL\"),N17/3+N49,IF(AND(N23=\"MENSUAL\",J23=\"MENSUAL\"),N17,\"\"))))","v":""}]
[]
[null,null,"NIVEL DE SEGREGACIÓN *"]
[null,null,"UNIDAD SEGREGADA (Ej. Facultad, Programa Académico, Área)",null,null,null,"RESULTADO",null,null,null,"ANALISIS DE DATOS SEGREGADO"]
[null,null,"CHÍA",null,null,null,0.05,null,null,null,"Durante el IIPA 2023 en la Extensión Chía, se realizaron un total de 8,869 consultas. De estas, 409 se dirigieron a material bibliográfico físico, mientras que 8,460 consultas se realizaron a recursos digitales."]
[null,null,"FACATATIVÁ",null,null,null,0.11,null,null,null,"Durante el IIPA 2023 en la Extensión Facatativá, se realizaron un total de 17.673  consultas. De estas, 758 se dirigieron a material bibliográfico físico, mientras que  16.915 consultas se realizaron a recursos digitales."]
[null,null,"FUSAGASUGÁ",null,null,null,0.43,null,null,null,"Durante el IIPA 2023 en la Sede Fusagasugá, se realizaron un total de 70.090  consultas. De estas, 1.928 se dirigieron a material bibliográfico físico, mientras que  68.162 consultas se realizaron a recursos digitales."]
[null,null,"GIRARDOT",null,null,null,0.25700000000000001,null,null,null,"Durante el IIPA 2023 en la Seccional Girardot, se realizaron un total de 41.579  consultas. De estas, 139 se dirigieron a material bibliográfico físico, mientras que  41.440 consultas se realizaron a recursos digitales."]
[null,null,"SOACHA",null,null,null,2.5000000000000001E-2,null,null,null,"Durante el IIPA 2023 en la Extensión Soacha, se realizaron un total de 4.051  consultas. De estas, 228 se dirigieron a material bibliográfico físico, mientras que 3.823 consultas se realizaron a recursos digitales."]
[null,null,"UBATE",null,null,null,0.11799999999999999,null,null,null,"Durante el IIPA 2023 en la Seccional Ubaté, se realizaron un total de 19.129  consultas. De estas, 374 se dirigieron a material bibliográfico físico, mientras que 18.755 consultas se realizaron a recursos digitales."]
[null,null,"ZIPAQUIRA",null,null,null,1E-3,null,null,null,"Durante el IIPA 2023 en la Seccional Ubaté, se realizaron un total de 121 consultas. De estas, 15 se dirigieron a material bibliográfico físico, mientras que 106 consultas se realizaron a recursos digitales."]
[]
[]
[]
[]
[]
[]
[]
[]
[]
[null,null,null,null,null,null,"Estratégico",null,null,"Eficacia"]
[null,null,null,null,null,null,"Misional",null,null,"Eficiencia"]
[null,null,null,null,null,null,"Apoyo",null,null,"Acreditación"]
[null,null,null,null,null,null,"Seguimiento, Medición, Análisis y Evaluación",null,null,"Positiva"]
[null,null,null,null,null,null,"Direccionamiento Estratégico",null,null,"Negativa"]
[null,null,null,null,null,null,"Planeación Institucional",null,null,"Por Unidad Regional"]
[null,null,null,null,null,null,"Proyectos Especiales y Relaciones Interinstitucionales",null,null,"Por Facultad"]
[null,null,null,null,null,null,"Sistemas Integrados",null,null,"Por Programa Académico"]
[null,null,null,null,null,null,"Autoevaluación y Acreditación",null,null,"Por área"]
[null,null,null,null,null,null,"Comunicaciones",null,null,"Por Laboratorio"]
[null,null,null,null,null,null,"Formación y Aprendizaje",null,null,"Otros"]
[null,null,null,null,null,null,"Ciencia, Tecnología e Innovación",null,null,"No Aplica"]
[null,null,null,null,null,null,"Interacción Social Universitaria"]
[null,null,null,null,null,null,"Bienestar Universitario"]
[null,null,null,null,null,null,"Admisiones y Registro"]
[null,null,null,null,null,null,"Graduados"]
[null,null,null,null,null,null,"Dialogando con el Mundo"]
[null,null,null,null,null,null,"Talento Humano"]
[null,null,null,null,null,null,"Jurídica"]
[null,null,null,null,null,null,"Financiera"]
[null,null,null,null,null,null,"Sistemas y Tecnología"]
[null,null,null,null,null,null,"Bienes y Servicios"]
[null,null,null,null,null,null,"Documental"]
[null,null,null,null,null,null,"Apoyo Académico"]
[null,null,null,null,null,null,"Control Interno"]
[null,null,null,null,null,null,"Control Disciplinario"]
[null,null,null,null,null,null,"Servicio de Atención al Ciudadano"]

{"sheet":"ACTUALIZACIONES","index":7,"n_rows":29,"n_cols":5,"rows_kept":29,"cut":false,"hidden":false,"merged":[[1,2,1,3],[1,1,4,1],[25,1,25,4],[28,1,28,4],[6,1,6,4],[3,2,4,3],[2,2,2,3]]}
[]
[null,null,"MACROPROCESO ESTRATÉGICO",null,"CÓDIGO: ESGr027"]
[null,null,"PROCESO GESTIÓN SISTEMAS INTEGRADOS - CALIDAD",null,"VERSIÓN: 8"]
[null,null,"MATRIZ DE MEDICIÓN Y SEGUIMIENTO A LOS PROCESOS DE GESTIÓN",null,"VIGENCIA: 2023-07-28"]
[null,null,null,null,"PÁGINA: 8 de 8"]
[]
[null,"CONTROL DE ACTUALIZACIONES"]
[null,"FECHA","DESCRIPCIÓN DE LA ACTUALIZACIÓN","RESPONSABLE","CARGO"]
[null,"2022-06-30","Se realizó el ajuste en la estructura del indicador AAA-2 Calibración de equipo y elementos educativos de investigación, para que la frecuencia de medición se realice de manera semestral","María de los Ángeles Franco Ortiz","Jefe de Apoyo Académico"]
[null,"2023-03-15","AAA-1 Se ajusta dentro de la formula el denominador \"Número total de licencias adquiridas\"\nAAA-5 Se ajusta el denominador de la formula \" Total de Elementos Educativos que Requieren Mantenimiento de acuerdo a Priorización\".\nAAA-6 Dado el comportamiento del indicador el proceso lo inactiva para la vigencia 2023.\nAAA-9 Se ajusta la formula del indicador Elementos educativos adquiridos para la academia*100 / Total de elementos educativos priorizados requeridos por la academia (solicitudes vigencia anterior).","María de los Ángeles Franco Ortiz","Jefe de Apoyo Académico"]
[null,"2023-07-10","De conformidad con la decisión tomada en sesión extraordinaria del Comité SAC, del 04 de julio de 2023, \"Los miembros del Comité SAC aprobaron por unanimidad, transferir del proceso Formación y Aprendizaje al proceso de Apoyo Académico los indicadores:  MFA-18 - Recursos de apoyo (Usabilidad de laboratorios) y MFA-19 - Usabilidad de recursos bibliográficos (bases de datos, libros impresos y digitales).\" Quedando identificados como lo tenía el proceso, el pasado 25/05/2021, indicador AAA-11 e AAA-12 respectivamente. La medición se llevará a partir del I semestre de 2023.","María de los Ángeles Franco Ortiz","Jefe de Apoyo Académico"]
[]
[]
[]
[]
[]
[]
[]
[]
[]
[]
[]
[]
[]
[]
[null,"Diagonal 18 No. 20-29 Fusagasugá – Cundinamarca\nTeléfono (601)  8281483 Línea Gratuita 018000180414\nwww.ucundinamarca.edu.co   E-mail:  info@ucundinamarca.edu.co\nNIT: 890.680.062-2                                                                             "]
[]
[]
[null,"Documento controlado por el Sistema de Gestión de la Calidad\nAsegúrese que corresponde a la última versión consultando el Portal Institucional"]

{"sheet":"ITEM","index":8,"n_rows":4,"n_cols":3,"rows_kept":4,"cut":false,"hidden":true,"merged":[]}
["MENSUAL",null,"NÚMERO"]
["TRIMESTRAL",null,"PORCENTAJE"]
["SEMESTRAL"]
["ANUAL"]